Workbook

Sheet Borçlanma ve Diğer Araç İhracı
A2: 2020 YILI İZAHNAME/İHRAÇ BELGESİ ONAYLANAN BORÇLANMA VE DİĞER SERMAYE PİYASASI ARAÇLARI ÖZET DURUM TABLOSU
A3: Sıra | B3: Şirket Adı | C3: Grubu | D3: Sermaye Piyasası Aracının Türü | E3: İzahname/ihraç Belgesi Kurul Kararı Tarihi | F3: Satış Yöntemi | G3: Yurtiçi İhraç Limiti Nominal Tutar (TL) | H3: Yurtiçi İhraç Limiti Nominal Tutar ABD Doları Karşılığı* | I3: Yurtiçi Satışı Gerçekleşen Nominal Tutar (TL) | J3: Yurtiçi Satışa Hazır Nominal Tutar (TL) | K3: YURTDIŞI İhraç Limiti Nominal Tutar | L3: YURTDIŞI İhraç Limiti Para Birimi | M3: YURTDIŞI Satışı Gerçekleşen Nominal Tutar | N3: YURTDIŞI Satışa Hazır Nominal Tutar | O3: YURTDIŞI Satışı Gerçekleşen Nominal Tutar (TL)** | P3: Kurul karar tarihindeki TCMB Döviz Satış Kuru
A4: 1 | B4: AKTİF BANK SUKUK VARLIK KİRALAMA A.Ş. | C4: Finansal Kurum | D4: Kira Sertifikası | E4: 2020-01-02 | F4: Nitelikli | G4: 600,000,000 | H4: =Table5402945[[#This Row],[Yurtiçi İhraç Limiti Nominal Tutar (TL)]]/Table5402945[[#This Row],[Kurul karar tarihindeki TCMB Döviz Satış Kuru]] -> 100,696,484 | I4: 600,000,000 | J4: =Table5402945[[#This Row],[Yurtiçi İhraç Limiti Nominal Tutar (TL)]]-Table5402945[[#This Row],[Yurtiçi Satışı Gerçekleşen Nominal Tutar (TL)]] -> 0 | P4: 5.9585
A5: 2 | B5: AYGAZ A.Ş. | C5: Reel Sektör | D5: Borçlanma Aracı | E5: 2020-01-02 | F5: Tahsisli/Nitelikli | G5: 300,000,000 | H5: =Table5402945[[#This Row],[Yurtiçi İhraç Limiti Nominal Tutar (TL)]]/Table5402945[[#This Row],[Kurul karar tarihindeki TCMB Döviz Satış Kuru]] -> 50,348,242 | I5: 0 | J5: =Table5402945[[#This Row],[Yurtiçi İhraç Limiti Nominal Tutar (TL)]]-Table5402945[[#This Row],[Yurtiçi Satışı Gerçekleşen Nominal Tutar (TL)]] -> 300,000,000 | P5: 5.9585
A6: 3 | B6: HALK VARLIK KİRALAMA A.Ş. | C6: Finansal Kurum | D6: Kira Sertifikası | E6: 2020-01-02 | F6: Tahsisli/Nitelikli | G6: 500,000,000 | H6: =Table5402945[[#This Row],[Yurtiçi İhraç Limiti Nominal Tutar (TL)]]/Table5402945[[#This Row],[Kurul karar tarihindeki TCMB Döviz Satış Kuru]] -> 83,913,737 | I6: 85,000,000 | J6: =Table5402945[[#This Row],[Yurtiçi İhraç Limiti Nominal Tutar (TL)]]-Table5402945[[#This Row],[Yurtiçi Satışı Gerçekleşen Nominal Tutar (TL)]] -> 415,000,000 | P6: 5.9585
A7: 4 | B7: KOÇ FIAT KREDİ FİNANSMAN A.Ş. | C7: Finansal Kurum | D7: Borçlanma Aracı | E7: 2020-01-02 | F7: Nitelikli | G7: 370,000,000 | H7: =Table5402945[[#This Row],[Yurtiçi İhraç Limiti Nominal Tutar (TL)]]/Table5402945[[#This Row],[Kurul karar tarihindeki TCMB Döviz Satış Kuru]] -> 62,096,165 | I7: 250,000,000 | J7: =Table5402945[[#This Row],[Yurtiçi İhraç Limiti Nominal Tutar (TL)]]-Table5402945[[#This Row],[Yurtiçi Satışı Gerçekleşen Nominal Tutar (TL)]] -> 120,000,000 | P7: 5.9585
A8: 5 | B8: SUVLA ŞARAPLARI TARIM SANAYİ VE TİCARET A.Ş. | C8: Reel Sektör | D8: Borçlanma Aracı | E8: 2020-01-09 | F8: Tahsisli | G8: 11,000,000 | H8: =Table5402945[[#This Row],[Yurtiçi İhraç Limiti Nominal Tutar (TL)]]/Table5402945[[#This Row],[Kurul karar tarihindeki TCMB Döviz Satış Kuru]] -> 1,867,065 | I8: 11,000,000 | J8: =Table5402945[[#This Row],[Yurtiçi İhraç Limiti Nominal Tutar (TL)]]-Table5402945[[#This Row],[Yurtiçi Satışı Gerçekleşen Nominal Tutar (TL)]] -> 0 | P8: 5.8916
A9: 6 | B9: TÜRK TELEKOMÜNİKASYON A.Ş. | C9: Reel Sektör | D9: Borçlanma Aracı | E9: 2020-01-09 | F9: Nitelikli | G9: 1,000,000,000 | H9: =Table5402945[[#This Row],[Yurtiçi İhraç Limiti Nominal Tutar (TL)]]/Table5402945[[#This Row],[Kurul karar tarihindeki TCMB Döviz Satış Kuru]] -> 169,733,179 | I9: 150,000,000 | J9: =Table5402945[[#This Row],[Yurtiçi İhraç Limiti Nominal Tutar (TL)]]-Table5402945[[#This Row],[Yurtiçi Satışı Gerçekleşen Nominal Tutar (TL)]] -> 850,000,000 | P9: 5.8916
A10: 7 | B10: TÜRKİYE VAKIFLAR BANKASI T.A.O. | C10: Banka | D10: Borçlanma Aracı | E10: 2020-01-09 | F10: Yurtdışı | K10: 5,000,000,000 | L10: Amerikan Doları | M10: =Table5402945[[#This Row],[YURTDIŞI Satışı Gerçekleşen Nominal Tutar (TL)**]]/7.4327 -> 1,870,242,376 | N10: =K10-M10 -> 3,129,757,624 | O10: 13,900,950,510 | P10: 5.8916
A11: 8 | B11: DENİZ GAYRİMENKUL YATIRIM ORTAKLIĞI A.Ş. | C11: Finansal Kurum | D11: Borçlanma Aracı | E11: 2020-01-16 | F11: Nitelikli | G11: 840,000,000 | H11: =Table5402945[[#This Row],[Yurtiçi İhraç Limiti Nominal Tutar (TL)]]/Table5402945[[#This Row],[Kurul karar tarihindeki TCMB Döviz Satış Kuru]] -> 142,881,442 | I11: 700,000,000 | J11: =Table5402945[[#This Row],[Yurtiçi İhraç Limiti Nominal Tutar (TL)]]-Table5402945[[#This Row],[Yurtiçi Satışı Gerçekleşen Nominal Tutar (TL)]] -> 140,000,000 | P11: 5.8790
A12: 9 | B12: İNFO YATIRIM MENKUL DEĞERLER A.Ş. | C12: Finansal Kurum | D12: Borçlanma Aracı | E12: 2020-01-16 | F12: Nitelikli | G12: 38,000,000 | H12: =Table5402945[[#This Row],[Yurtiçi İhraç Limiti Nominal Tutar (TL)]]/Table5402945[[#This Row],[Kurul karar tarihindeki TCMB Döviz Satış Kuru]] -> 6,463,684 | I12: 38,000,000 | J12: =Table5402945[[#This Row],[Yurtiçi İhraç Limiti Nominal Tutar (TL)]]-Table5402945[[#This Row],[Yurtiçi Satışı Gerçekleşen Nominal Tutar (TL)]] -> 0 | P12: 5.8790
A13: 10 | B13: ŞEKER FAKTORİNG A.Ş. | C13: Finansal Kurum | D13: Borçlanma Aracı | E13: 2020-01-16 | F13: Nitelikli | G13: 83,000,000 | H13: =Table5402945[[#This Row],[Yurtiçi İhraç Limiti Nominal Tutar (TL)]]/Table5402945[[#This Row],[Kurul karar tarihindeki TCMB Döviz Satış Kuru]] -> 14,118,047 | I13: 83,000,000 | J13: =Table5402945[[#This Row],[Yurtiçi İhraç Limiti Nominal Tutar (TL)]]-Table5402945[[#This Row],[Yurtiçi Satışı Gerçekleşen Nominal Tutar (TL)]] -> 0 | P13: 5.8790
A14: 11 | B14: T.C. ZİRAAT BANKASI A.Ş. | C14: Banka | D14: Borçlanma Aracı | E14: 2020-01-16 | F14: Tahsisli/Nitelikli | G14: 12,500,000,000 | H14: =Table5402945[[#This Row],[Yurtiçi İhraç Limiti Nominal Tutar (TL)]]/Table5402945[[#This Row],[Kurul karar tarihindeki TCMB Döviz Satış Kuru]] -> 2,126,211,941 | I14: 2,529,130,000 | J14: =Table5402945[[#This Row],[Yurtiçi İhraç Limiti Nominal Tutar (TL)]]-Table5402945[[#This Row],[Yurtiçi Satışı Gerçekleşen Nominal Tutar (TL)]] -> 9,970,870,000 | P14: 5.8790
A15: 12 | B15: T.C. ZİRAAT BANKASI A.Ş. | C15: Banka | D15: Borçlanma Aracı | E15: 2020-01-16 | F15: Tahsisli/Nitelikli | G15: 2,500,000,000 | H15: =Table5402945[[#This Row],[Yurtiçi İhraç Limiti Nominal Tutar (TL)]]/Table5402945[[#This Row],[Kurul karar tarihindeki TCMB Döviz Satış Kuru]] -> 425,242,388 | I15: 0 | J15: =Table5402945[[#This Row],[Yurtiçi İhraç Limiti Nominal Tutar (TL)]]-Table5402945[[#This Row],[Yurtiçi Satışı Gerçekleşen Nominal Tutar (TL)]] -> 2,500,000,000 | P15: 5.8790
A16: 13 | B16: TÜRKİYE İŞ BANKASI A.Ş. | C16: Banka | D16: Borçlanma Aracı | E16: 2020-01-16 | F16: Yurtdışı | K16: 5,000,000,000 | L16: Amerikan Doları | M16: 765,000,000 | N16: =K16-M16 -> 4,235,000,000 | O16: =Table5402945[[#This Row],[YURTDIŞI Satışı Gerçekleşen Nominal Tutar]]*7.4327 -> 5,686,015,500 | P16: 5.8790
A17: 14 | B17: AKBANK T.A.Ş. | C17: Banka | D17: Borçlanma Aracı | E17: 2020-01-23 | F17: Yurtdışı | K17: 2,000,000,000 | L17: Amerikan Doları | M17: 550,000,000 | N17: =K17-M17 -> 1,450,000,000 | O17: =Table5402945[[#This Row],[YURTDIŞI Satışı Gerçekleşen Nominal Tutar]]*7.4327 -> 4,087,985,000 | P17: 5.9259
A18: 15 | B18: MERCEDES BENZ FİNANSMAN TÜRK A.Ş. | C18: Finansal Kurum | D18: Borçlanma Aracı | E18: 2020-01-23 | F18: Tahsisli/Nitelikli | G18: 1,500,000,000 | H18: =Table5402945[[#This Row],[Yurtiçi İhraç Limiti Nominal Tutar (TL)]]/Table5402945[[#This Row],[Kurul karar tarihindeki TCMB Döviz Satış Kuru]] -> 253,126,107 | I18: 390,000,000 | J18: =Table5402945[[#This Row],[Yurtiçi İhraç Limiti Nominal Tutar (TL)]]-Table5402945[[#This Row],[Yurtiçi Satışı Gerçekleşen Nominal Tutar (TL)]] -> 1,110,000,000 | P18: 5.9259
A19: 16 | B19: PASHA YATIRIM BANKASI A.Ş. | C19: Banka | D19: Borçlanma Aracı | E19: 2020-01-23 | F19: Tahsisli/Nitelikli | G19: 300,000,000 | H19: =Table5402945[[#This Row],[Yurtiçi İhraç Limiti Nominal Tutar (TL)]]/Table5402945[[#This Row],[Kurul karar tarihindeki TCMB Döviz Satış Kuru]] -> 50,625,221 | I19: 96,000,000 | J19: =Table5402945[[#This Row],[Yurtiçi İhraç Limiti Nominal Tutar (TL)]]-Table5402945[[#This Row],[Yurtiçi Satışı Gerçekleşen Nominal Tutar (TL)]] -> 204,000,000 | P19: 5.9259
A20: 17 | B20: SÜMER FAKTORİNG A.Ş. | C20: Finansal Kurum | D20: Borçlanma Aracı | E20: 2020-01-23 | F20: Nitelikli | G20: 90,000,000 | H20: =Table5402945[[#This Row],[Yurtiçi İhraç Limiti Nominal Tutar (TL)]]/Table5402945[[#This Row],[Kurul karar tarihindeki TCMB Döviz Satış Kuru]] -> 15,187,566 | I20: 65,336,000 | J20: =Table5402945[[#This Row],[Yurtiçi İhraç Limiti Nominal Tutar (TL)]]-Table5402945[[#This Row],[Yurtiçi Satışı Gerçekleşen Nominal Tutar (TL)]] -> 24,664,000 | P20: 5.9259
A21: 18 | B21: T.C. ZİRAAT BANKASI A.Ş. | C21: Banka | D21: Borçlanma Aracı | E21: 2020-01-23 | F21: Yurtdışı | K21: 4,000,000,000 | L21: Amerikan Doları | M21: =Table5402945[[#This Row],[YURTDIŞI Satışı Gerçekleşen Nominal Tutar (TL)**]]/7.4327 -> 243,770,326 | N21: =K21-M21 -> 3,756,229,674 | O21: 1,811,871,700 | P21: 5.9259
A22: 19 | B22: YAPI KREDİ YATIRIM MENKUL DEĞERLER A.Ş. | C22: Finansal Kurum | D22: Borçlanma Aracı | E22: 2020-01-23 | F22: Tahsisli/Nitelikli | G22: 1,160,000,000 | H22: =Table5402945[[#This Row],[Yurtiçi İhraç Limiti Nominal Tutar (TL)]]/Table5402945[[#This Row],[Kurul karar tarihindeki TCMB Döviz Satış Kuru]] -> 195,750,856 | I22: 1,054,660,000 | J22: =Table5402945[[#This Row],[Yurtiçi İhraç Limiti Nominal Tutar (TL)]]-Table5402945[[#This Row],[Yurtiçi Satışı Gerçekleşen Nominal Tutar (TL)]] -> 105,340,000 | P22: 5.9259
A23: 20 | B23: SÜMER VARLIK YÖNETİM A.Ş. | C23: Finansal Kurum | D23: Borçlanma Aracı | E23: 2020-01-30 | F23: Nitelikli | G23: 101,000,000 | H23: =Table5402945[[#This Row],[Yurtiçi İhraç Limiti Nominal Tutar (TL)]]/Table5402945[[#This Row],[Kurul karar tarihindeki TCMB Döviz Satış Kuru]] -> 16,882,856 | I23: 86,385,000 | J23: =Table5402945[[#This Row],[Yurtiçi İhraç Limiti Nominal Tutar (TL)]]-Table5402945[[#This Row],[Yurtiçi Satışı Gerçekleşen Nominal Tutar (TL)]] -> 14,615,000 | P23: 5.9824
A24: 21 | B24: YATIRIM FİNANSMAN MENKUL DEĞERLER A.Ş. | C24: Finansal Kurum | D24: Borçlanma Aracı | E24: 2020-01-30 | F24: Nitelikli | G24: 220,000,000 | H24: =Table5402945[[#This Row],[Yurtiçi İhraç Limiti Nominal Tutar (TL)]]/Table5402945[[#This Row],[Kurul karar tarihindeki TCMB Döviz Satış Kuru]] -> 36,774,539 | I24: 167,500,000 | J24: =Table5402945[[#This Row],[Yurtiçi İhraç Limiti Nominal Tutar (TL)]]-Table5402945[[#This Row],[Yurtiçi Satışı Gerçekleşen Nominal Tutar (TL)]] -> 52,500,000 | P24: 5.9824
A25: 22 | B25: AKTİF YATIRIM BANKASI A.Ş. | C25: Banka | D25: Borçlanma Aracı | E25: 2020-02-06 | F25: Halka Arz/Nitelikli | G25: 2,049,623,000 | H25: =Table5402945[[#This Row],[Yurtiçi İhraç Limiti Nominal Tutar (TL)]]/Table5402945[[#This Row],[Kurul karar tarihindeki TCMB Döviz Satış Kuru]] -> 342,225,543 | I25: 2,049,623,000 | J25: =Table5402945[[#This Row],[Yurtiçi İhraç Limiti Nominal Tutar (TL)]]-Table5402945[[#This Row],[Yurtiçi Satışı Gerçekleşen Nominal Tutar (TL)]] -> 0 | P25: 5.9891
A26: 23 | B26: BAŞER FAKTORİNG A.Ş. | C26: Finansal Kurum | D26: Borçlanma Aracı | E26: 2020-02-06 | F26: Nitelikli | G26: 20,000,000 | H26: =Table5402945[[#This Row],[Yurtiçi İhraç Limiti Nominal Tutar (TL)]]/Table5402945[[#This Row],[Kurul karar tarihindeki TCMB Döviz Satış Kuru]] -> 3,339,400 | I26: 20,000,000 | J26: =Table5402945[[#This Row],[Yurtiçi İhraç Limiti Nominal Tutar (TL)]]-Table5402945[[#This Row],[Yurtiçi Satışı Gerçekleşen Nominal Tutar (TL)]] -> 0 | P26: 5.9891
A27: 24 | B27: İŞ YATIRIM MENKUL DEĞERLER A.Ş. | C27: Finansal Kurum | D27: Borçlanma Aracı | E27: 2020-02-06 | F27: Tahsisli/Nitelikli | G27: 1,900,000,000 | H27: =Table5402945[[#This Row],[Yurtiçi İhraç Limiti Nominal Tutar (TL)]]/Table5402945[[#This Row],[Kurul karar tarihindeki TCMB Döviz Satış Kuru]] -> 317,242,991 | I27: 0 | J27: =Table5402945[[#This Row],[Yurtiçi İhraç Limiti Nominal Tutar (TL)]]-Table5402945[[#This Row],[Yurtiçi Satışı Gerçekleşen Nominal Tutar (TL)]] -> 1,900,000,000 | P27: 5.9891
A28: 25 | B28: NET HOLDİNG A.Ş. | C28: Reel Sektör | D28: Borçlanma Aracı | E28: 2020-02-06 | F28: Tahsisli/Nitelikli | G28: 300,000,000 | H28: =Table5402945[[#This Row],[Yurtiçi İhraç Limiti Nominal Tutar (TL)]]/Table5402945[[#This Row],[Kurul karar tarihindeki TCMB Döviz Satış Kuru]] -> 50,090,999 | I28: 0 | J28: =Table5402945[[#This Row],[Yurtiçi İhraç Limiti Nominal Tutar (TL)]]-Table5402945[[#This Row],[Yurtiçi Satışı Gerçekleşen Nominal Tutar (TL)]] -> 300,000,000 | P28: 5.9891
A29: 26 | B29: NET HOLDİNG A.Ş. | C29: Reel Sektör | D29: Borçlanma Aracı | E29: 2020-02-06 | F29: Yurtdışı | K29: 300,000,000 | L29: Amerikan Doları | M29: 0 | N29: =K29-M29 -> 300,000,000 | O29: 0 | P29: 5.9891
A30: 27 | B30: TÜRKİYE GARANTİ BANKASI A.Ş. | C30: Banka | D30: Borçlanma Aracı | E30: 2020-02-06 | F30: Yurtdışı | K30: 6,000,000,000 | L30: Amerikan Doları | M30: 0 | N30: =K30-M30 -> 6,000,000,000 | O30: 0 | P30: 5.9891
A31: 28 | B31: A1 CAPİTAL YATIRIM MENKUL DEĞERLER A.Ş. | C31: Finansal Kurum | D31: Borçlanma Aracı | E31: 2020-02-13 | F31: Nitelikli | G31: 50,000,000 | H31: =Table5402945[[#This Row],[Yurtiçi İhraç Limiti Nominal Tutar (TL)]]/Table5402945[[#This Row],[Kurul karar tarihindeki TCMB Döviz Satış Kuru]] -> 8,255,184 | I31: 50,000,000 | J31: =Table5402945[[#This Row],[Yurtiçi İhraç Limiti Nominal Tutar (TL)]]-Table5402945[[#This Row],[Yurtiçi Satışı Gerçekleşen Nominal Tutar (TL)]] -> 0 | P31: 6.0568
A32: 29 | B32: YATIRIM VARLIK KİRALAMA A.Ş. | C32: Finansal Kurum | D32: Kira Sertifikası | E32: 2020-02-13 | F32: Nitelikli | G32: 300,000,000 | H32: =Table5402945[[#This Row],[Yurtiçi İhraç Limiti Nominal Tutar (TL)]]/Table5402945[[#This Row],[Kurul karar tarihindeki TCMB Döviz Satış Kuru]] -> 49,531,106 | I32: 115,000,000 | J32: =Table5402945[[#This Row],[Yurtiçi İhraç Limiti Nominal Tutar (TL)]]-Table5402945[[#This Row],[Yurtiçi Satışı Gerçekleşen Nominal Tutar (TL)]] -> 185,000,000 | P32: 6.0568
A33: 30 | B33: AKTİF BANK SUKUK VARLIK KİRALAMA A.Ş. | C33: Finansal Kurum | D33: Kira Sertifikası | E33: 2020-02-20 | F33: Nitelikli | G33: 135,000,000 | H33: =Table5402945[[#This Row],[Yurtiçi İhraç Limiti Nominal Tutar (TL)]]/Table5402945[[#This Row],[Kurul karar tarihindeki TCMB Döviz Satış Kuru]] -> 22,155,119 | I33: 135,000,000 | J33: =Table5402945[[#This Row],[Yurtiçi İhraç Limiti Nominal Tutar (TL)]]-Table5402945[[#This Row],[Yurtiçi Satışı Gerçekleşen Nominal Tutar (TL)]] -> 0 | P33: 6.0934
A34: 31 | B34: DENİZ FAKTORİNG A.Ş. | C34: Finansal Kurum | D34: Borçlanma Aracı | E34: 2020-02-20 | F34: Nitelikli | G34: 1,000,000,000 | H34: =Table5402945[[#This Row],[Yurtiçi İhraç Limiti Nominal Tutar (TL)]]/Table5402945[[#This Row],[Kurul karar tarihindeki TCMB Döviz Satış Kuru]] -> 164,111,990 | I34: 689,400,000 | J34: =Table5402945[[#This Row],[Yurtiçi İhraç Limiti Nominal Tutar (TL)]]-Table5402945[[#This Row],[Yurtiçi Satışı Gerçekleşen Nominal Tutar (TL)]] -> 310,600,000 | P34: 6.0934
A35: 32 | B35: EREĞLİ TEKSTİL TURİZM SANAYİ VE TİCARET A.Ş. | C35: Reel Sektör | D35: Borçlanma Aracı | E35: 2020-02-20 | F35: Nitelikli | G35: 181,500,000 | H35: =Table5402945[[#This Row],[Yurtiçi İhraç Limiti Nominal Tutar (TL)]]/Table5402945[[#This Row],[Kurul karar tarihindeki TCMB Döviz Satış Kuru]] -> 29,786,326 | I35: 161,000,000 | J35: =Table5402945[[#This Row],[Yurtiçi İhraç Limiti Nominal Tutar (TL)]]-Table5402945[[#This Row],[Yurtiçi Satışı Gerçekleşen Nominal Tutar (TL)]] -> 20,500,000 | P35: 6.0934
A36: 33 | B36: OPET PETROLCÜLÜK A.Ş. | C36: Reel Sektör | D36: Borçlanma Aracı | E36: 2020-02-20 | F36: Nitelikli | G36: 500,000,000 | H36: =Table5402945[[#This Row],[Yurtiçi İhraç Limiti Nominal Tutar (TL)]]/Table5402945[[#This Row],[Kurul karar tarihindeki TCMB Döviz Satış Kuru]] -> 82,055,995 | I36: 0 | J36: =Table5402945[[#This Row],[Yurtiçi İhraç Limiti Nominal Tutar (TL)]]-Table5402945[[#This Row],[Yurtiçi Satışı Gerçekleşen Nominal Tutar (TL)]] -> 500,000,000 | P36: 6.0934
A37: 34 | B37: PASHA YATIRIM BANKASI A.Ş.BİRİNCİ VARLIK FİNANSMANI FONU | C37: Finansal Kurum | D37: VDMK | E37: 2020-02-20 | F37: Nitelikli | G37: 20,000,000 | H37: =Table5402945[[#This Row],[Yurtiçi İhraç Limiti Nominal Tutar (TL)]]/Table5402945[[#This Row],[Kurul karar tarihindeki TCMB Döviz Satış Kuru]] -> 3,282,240 | I37: 20,000,000 | J37: =Table5402945[[#This Row],[Yurtiçi İhraç Limiti Nominal Tutar (TL)]]-Table5402945[[#This Row],[Yurtiçi Satışı Gerçekleşen Nominal Tutar (TL)]] -> 0 | P37: 6.0934
A38: 35 | B38: YEDİTEPE FAKTORİNG A.Ş. | C38: Finansal Kurum | D38: Borçlanma Aracı | E38: 2020-02-20 | F38: Nitelikli | G38: 125,000,000 | H38: =Table5402945[[#This Row],[Yurtiçi İhraç Limiti Nominal Tutar (TL)]]/Table5402945[[#This Row],[Kurul karar tarihindeki TCMB Döviz Satış Kuru]] -> 20,513,999 | I38: 0 | J38: =Table5402945[[#This Row],[Yurtiçi İhraç Limiti Nominal Tutar (TL)]]-Table5402945[[#This Row],[Yurtiçi Satışı Gerçekleşen Nominal Tutar (TL)]] -> 125,000,000 | P38: 6.0934
A39: 36 | B39: ALTERNATİFBANK A.Ş. | C39: Banka | D39: Borçlanma Aracı | E39: 2020-02-27 | F39: Tahsisli/Nitelikli | G39: 3,000,000,000 | H39: =Table5402945[[#This Row],[Yurtiçi İhraç Limiti Nominal Tutar (TL)]]/Table5402945[[#This Row],[Kurul karar tarihindeki TCMB Döviz Satış Kuru]] -> 486,192,143 | I39: 1,140,573,000 | J39: =Table5402945[[#This Row],[Yurtiçi İhraç Limiti Nominal Tutar (TL)]]-Table5402945[[#This Row],[Yurtiçi Satışı Gerçekleşen Nominal Tutar (TL)]] -> 1,859,427,000 | P39: 6.1704
A40: 37 | B40: ŞEKER FİNANSAL KİRALAMA A.Ş. | C40: Finansal Kurum | D40: Borçlanma Aracı | E40: 2020-02-27 | F40: Halka Arz/Tahsisli/Nitelikli | G40: 200,000,000 | H40: =Table5402945[[#This Row],[Yurtiçi İhraç Limiti Nominal Tutar (TL)]]/Table5402945[[#This Row],[Kurul karar tarihindeki TCMB Döviz Satış Kuru]] -> 32,412,810 | I40: 200,000,000 | J40: =Table5402945[[#This Row],[Yurtiçi İhraç Limiti Nominal Tutar (TL)]]-Table5402945[[#This Row],[Yurtiçi Satışı Gerçekleşen Nominal Tutar (TL)]] -> 0 | P40: 6.1704
A41: 38 | B41: ZORLU ENERJİ ELEKTRİK ÜRETİM A.Ş. | C41: Reel Sektör | D41: Borçlanma Aracı | E41: 2020-02-27 | F41: Nitelikli | G41: 800,000,000 | H41: =Table5402945[[#This Row],[Yurtiçi İhraç Limiti Nominal Tutar (TL)]]/Table5402945[[#This Row],[Kurul karar tarihindeki TCMB Döviz Satış Kuru]] -> 129,651,238 | I41: 790,095,000 | J41: =Table5402945[[#This Row],[Yurtiçi İhraç Limiti Nominal Tutar (TL)]]-Table5402945[[#This Row],[Yurtiçi Satışı Gerçekleşen Nominal Tutar (TL)]] -> 9,905,000 | P41: 6.1704
A42: 39 | B42: AG ANADOLU GRUBU HOLDİNG A.Ş. | C42: Reel Sektör | D42: Borçlanma Aracı | E42: 2020-03-05 | F42: Nitelikli | G42: 1,000,000,000 | H42: =Table5402945[[#This Row],[Yurtiçi İhraç Limiti Nominal Tutar (TL)]]/Table5402945[[#This Row],[Kurul karar tarihindeki TCMB Döviz Satış Kuru]] -> 164,252,160 | I42: 175,000,000 | J42: =Table5402945[[#This Row],[Yurtiçi İhraç Limiti Nominal Tutar (TL)]]-Table5402945[[#This Row],[Yurtiçi Satışı Gerçekleşen Nominal Tutar (TL)]] -> 825,000,000 | P42: 6.0882
A43: 40 | B43: ING BANK A.Ş. | C43: Banka | D43: Borçlanma Aracı | E43: 2020-03-05 | F43: Halka Arz/Tahsisli/Nitelikli | G43: 4,000,000,000 | H43: =Table5402945[[#This Row],[Yurtiçi İhraç Limiti Nominal Tutar (TL)]]/Table5402945[[#This Row],[Kurul karar tarihindeki TCMB Döviz Satış Kuru]] -> 657,008,640 | I43: 0 | J43: =Table5402945[[#This Row],[Yurtiçi İhraç Limiti Nominal Tutar (TL)]]-Table5402945[[#This Row],[Yurtiçi Satışı Gerçekleşen Nominal Tutar (TL)]] -> 4,000,000,000 | P43: 6.0882
A44: 41 | B44: NUROL VARLIK KİRALAMA A.Ş. | C44: Finansal Kurum | D44: Kira Sertifikası | E44: 2020-03-05 | F44: Tahsisli/Nitelikli | G44: 500,000,000 | H44: =Table5402945[[#This Row],[Yurtiçi İhraç Limiti Nominal Tutar (TL)]]/Table5402945[[#This Row],[Kurul karar tarihindeki TCMB Döviz Satış Kuru]] -> 82,126,080 | I44: 450,000,000 | J44: =Table5402945[[#This Row],[Yurtiçi İhraç Limiti Nominal Tutar (TL)]]-Table5402945[[#This Row],[Yurtiçi Satışı Gerçekleşen Nominal Tutar (TL)]] -> 50,000,000 | P44: 6.0882
A45: 42 | B45: OYAK YATIRIM MENKUL DEĞERLER A.Ş. | C45: Finansal Kurum | D45: Borçlanma Aracı | E45: 2020-03-05 | F45: Tahsisli/Nitelikli | G45: 460,000,000 | H45: =Table5402945[[#This Row],[Yurtiçi İhraç Limiti Nominal Tutar (TL)]]/Table5402945[[#This Row],[Kurul karar tarihindeki TCMB Döviz Satış Kuru]] -> 75,555,994 | I45: 453,500,000 | J45: =Table5402945[[#This Row],[Yurtiçi İhraç Limiti Nominal Tutar (TL)]]-Table5402945[[#This Row],[Yurtiçi Satışı Gerçekleşen Nominal Tutar (TL)]] -> 6,500,000 | P45: 6.0882
A46: 43 | B46: YATIRIM VARLIK KİRALAMA A.Ş. | C46: Finansal Kurum | D46: Kira Sertifikası | E46: 2020-03-12 | F46: Nitelikli | G46: 450,000,000 | H46: =Table5402945[[#This Row],[Yurtiçi İhraç Limiti Nominal Tutar (TL)]]/Table5402945[[#This Row],[Kurul karar tarihindeki TCMB Döviz Satış Kuru]] -> 72,143,132 | I46: 165,000,000 | J46: =Table5402945[[#This Row],[Yurtiçi İhraç Limiti Nominal Tutar (TL)]]-Table5402945[[#This Row],[Yurtiçi Satışı Gerçekleşen Nominal Tutar (TL)]] -> 285,000,000 | P46: 6.2376
A47: 44 | B47: AKTİF BANK SUKUK VARLIK KİRALAMA A.Ş. | C47: Finansal Kurum | D47: Kira Sertifikası | E47: 2020-03-19 | F47: Nitelikli | G47: 1,000,000,000 | H47: =Table5402945[[#This Row],[Yurtiçi İhraç Limiti Nominal Tutar (TL)]]/Table5402945[[#This Row],[Kurul karar tarihindeki TCMB Döviz Satış Kuru]] -> 153,207,397 | I47: 710,000,000 | J47: =Table5402945[[#This Row],[Yurtiçi İhraç Limiti Nominal Tutar (TL)]]-Table5402945[[#This Row],[Yurtiçi Satışı Gerçekleşen Nominal Tutar (TL)]] -> 290,000,000 | P47: 6.5271
A48: 45 | B48: VESTEL ELEKTRONİK SANAYİ VE TİCARET A.Ş. | C48: Reel Sektör | D48: Borçlanma Aracı | E48: 2020-03-19 | F48: Nitelikli | G48: 750,000,000 | H48: =Table5402945[[#This Row],[Yurtiçi İhraç Limiti Nominal Tutar (TL)]]/Table5402945[[#This Row],[Kurul karar tarihindeki TCMB Döviz Satış Kuru]] -> 114,905,548 | I48: 100,446,100 | J48: =Table5402945[[#This Row],[Yurtiçi İhraç Limiti Nominal Tutar (TL)]]-Table5402945[[#This Row],[Yurtiçi Satışı Gerçekleşen Nominal Tutar (TL)]] -> 649,553,900 | P48: 6.5271
A49: 46 | B49: YAPI VE KREDİ BANKASI A.Ş. | C49: Banka | D49: Borçlanma Aracı | E49: 2020-03-19 | F49: Yurtdışı | K49: 7,000,000,000 | L49: Amerikan Doları | M49: 0 | N49: =K49-M49 -> 7,000,000,000 | O49: 0 | P49: 6.5271
A50: 47 | B50: ANADOLUBANK A.Ş. | C50: Banka | D50: Borçlanma Aracı | E50: 2020-03-26 | F50: Tahsisli/Nitelikli | G50: 600,000,000 | H50: =Table5402945[[#This Row],[Yurtiçi İhraç Limiti Nominal Tutar (TL)]]/Table5402945[[#This Row],[Kurul karar tarihindeki TCMB Döviz Satış Kuru]] -> 92,770,116 | I50: 291,826,000 | J50: =Table5402945[[#This Row],[Yurtiçi İhraç Limiti Nominal Tutar (TL)]]-Table5402945[[#This Row],[Yurtiçi Satışı Gerçekleşen Nominal Tutar (TL)]] -> 308,174,000 | P50: 6.4676
A51: 48 | B51: EMLAK KATILIM VARLIK KİRALAMA A.Ş. | C51: Finansal Kurum | D51: Kira Sertifikası | E51: 2020-03-26 | F51: Tahsisli/Nitelikli | G51: 2,000,000,000 | H51: =Table5402945[[#This Row],[Yurtiçi İhraç Limiti Nominal Tutar (TL)]]/Table5402945[[#This Row],[Kurul karar tarihindeki TCMB Döviz Satış Kuru]] -> 309,233,719 | I51: 1,991,395,000 | J51: =Table5402945[[#This Row],[Yurtiçi İhraç Limiti Nominal Tutar (TL)]]-Table5402945[[#This Row],[Yurtiçi Satışı Gerçekleşen Nominal Tutar (TL)]] -> 8,605,000 | P51: 6.4676
A52: 49 | B52: T.C. ZİRAAT BANKASI A.Ş. | C52: Banka | D52: İTMK | E52: 2020-03-26 | F52: Yurtdışı | K52: 1,500,000,000 | L52: Amerikan Doları | M52: 0 | N52: =K52-M52 -> 1,500,000,000 | O52: 0 | P52: 6.4676
A53: 50 | B53: T.C. ZİRAAT BANKASI A.Ş. | C53: Banka | D53: İTMK | E53: 2020-03-26 | F53: Tahsisli/Nitelikli | G53: 5,000,000,000 | H53: =Table5402945[[#This Row],[Yurtiçi İhraç Limiti Nominal Tutar (TL)]]/Table5402945[[#This Row],[Kurul karar tarihindeki TCMB Döviz Satış Kuru]] -> 773,084,297 | I53: 0 | J53: =Table5402945[[#This Row],[Yurtiçi İhraç Limiti Nominal Tutar (TL)]]-Table5402945[[#This Row],[Yurtiçi Satışı Gerçekleşen Nominal Tutar (TL)]] -> 5,000,000,000 | P53: 6.4676
A54: 51 | B54: AK YATIRIM MENKUL DEĞERLER A.Ş. | C54: Finansal Kurum | D54: Borçlanma Aracı | E54: 2020-04-02 | F54: Nitelikli | G54: 250,000,000 | H54: =Table5402945[[#This Row],[Yurtiçi İhraç Limiti Nominal Tutar (TL)]]/Table5402945[[#This Row],[Kurul karar tarihindeki TCMB Döviz Satış Kuru]] -> 37,429,632 | I54: 39,490,000 | J54: =Table5402945[[#This Row],[Yurtiçi İhraç Limiti Nominal Tutar (TL)]]-Table5402945[[#This Row],[Yurtiçi Satışı Gerçekleşen Nominal Tutar (TL)]] -> 210,510,000 | P54: 6.6792
A55: 52 | B55: AKÇANSA ÇİMENTO SANAYİ VE TİCARET A.Ş. | C55: Reel Sektör | D55: Borçlanma Aracı | E55: 2020-04-02 | F55: Nitelikli | G55: 250,000,000 | H55: =Table5402945[[#This Row],[Yurtiçi İhraç Limiti Nominal Tutar (TL)]]/Table5402945[[#This Row],[Kurul karar tarihindeki TCMB Döviz Satış Kuru]] -> 37,429,632 | I55: 0 | J55: =Table5402945[[#This Row],[Yurtiçi İhraç Limiti Nominal Tutar (TL)]]-Table5402945[[#This Row],[Yurtiçi Satışı Gerçekleşen Nominal Tutar (TL)]] -> 250,000,000 | P55: 6.6792
A56: 53 | B56: ARENA FAKTORİNG A.Ş. | C56: Finansal Kurum | D56: Borçlanma Aracı | E56: 2020-04-02 | F56: Nitelikli | G56: 35,000,000 | H56: =Table5402945[[#This Row],[Yurtiçi İhraç Limiti Nominal Tutar (TL)]]/Table5402945[[#This Row],[Kurul karar tarihindeki TCMB Döviz Satış Kuru]] -> 5,240,149 | I56: 35,000,000 | J56: =Table5402945[[#This Row],[Yurtiçi İhraç Limiti Nominal Tutar (TL)]]-Table5402945[[#This Row],[Yurtiçi Satışı Gerçekleşen Nominal Tutar (TL)]] -> 0 | P56: 6.6792
A57: 54 | B57: DENİZBANK A.Ş. | C57: Banka | D57: Borçlanma Aracı | E57: 2020-04-02 | F57: Yurtdışı | K57: 3,000,000,000 | L57: Amerikan Doları | M57: =Table5402945[[#This Row],[YURTDIŞI Satışı Gerçekleşen Nominal Tutar (TL)**]]/7.4327 -> 67,750,305 | N57: =K57-M57 -> 2,932,249,695 | O57: 503,567,690 | P57: 6.6792
A58: 54 | B58: GEDİK YATIRIM MENKUL DEĞERLER A.Ş. | C58: Finansal Kurum | D58: Borçlanma Aracı | E58: 2020-04-02 | F58: Halka Arz/Nitelikli | G58: 600,000,000 | H58: =Table5402945[[#This Row],[Yurtiçi İhraç Limiti Nominal Tutar (TL)]]/Table5402945[[#This Row],[Kurul karar tarihindeki TCMB Döviz Satış Kuru]] -> 89,831,117 | I58: 260,401,000 | J58: =Table5402945[[#This Row],[Yurtiçi İhraç Limiti Nominal Tutar (TL)]]-Table5402945[[#This Row],[Yurtiçi Satışı Gerçekleşen Nominal Tutar (TL)]] -> 339,599,000 | P58: 6.6792
A59: 55 | B59: ŞEKER YATIRIM MENKUL DEĞERLER A.Ş. | C59: Finansal Kurum | D59: Borçlanma Aracı | E59: 2020-04-02 | F59: Nitelikli | G59: 97,000,000 | H59: =Table5402945[[#This Row],[Yurtiçi İhraç Limiti Nominal Tutar (TL)]]/Table5402945[[#This Row],[Kurul karar tarihindeki TCMB Döviz Satış Kuru]] -> 14,522,697 | I59: 97,000,000 | J59: =Table5402945[[#This Row],[Yurtiçi İhraç Limiti Nominal Tutar (TL)]]-Table5402945[[#This Row],[Yurtiçi Satışı Gerçekleşen Nominal Tutar (TL)]] -> 0 | P59: 6.6792
A60: 56 | B60: ZİRAAT KATILIM VARLIK KİRALAMA A.Ş. | C60: Finansal Kurum | D60: Kira Sertifikası | E60: 2020-04-02 | F60: Tahsisli/Nitelikli | G60: 12,000,000,000 | H60: =Table5402945[[#This Row],[Yurtiçi İhraç Limiti Nominal Tutar (TL)]]/Table5402945[[#This Row],[Kurul karar tarihindeki TCMB Döviz Satış Kuru]] -> 1,796,622,350 | I60: 9,850,000,000 | J60: =Table5402945[[#This Row],[Yurtiçi İhraç Limiti Nominal Tutar (TL)]]-Table5402945[[#This Row],[Yurtiçi Satışı Gerçekleşen Nominal Tutar (TL)]] -> 2,150,000,000 | P60: 6.6792
A61: 57 | B61: İNFO YATIRIM MENKUL DEĞERLER A.Ş. | C61: Finansal Kurum | D61: Borçlanma Aracı | E61: 2020-04-09 | F61: Nitelikli | G61: 100,000,000 | H61: =Table5402945[[#This Row],[Yurtiçi İhraç Limiti Nominal Tutar (TL)]]/Table5402945[[#This Row],[Kurul karar tarihindeki TCMB Döviz Satış Kuru]] -> 14,813,937 | I61: 100,000,000 | J61: =Table5402945[[#This Row],[Yurtiçi İhraç Limiti Nominal Tutar (TL)]]-Table5402945[[#This Row],[Yurtiçi Satışı Gerçekleşen Nominal Tutar (TL)]] -> 0 | P61: 6.7504
A62: 58 | B62: ŞEKER FAKTORİNG A.Ş. | C62: Finansal Kurum | D62: Borçlanma Aracı | E62: 2020-04-09 | F62: Nitelikli | G62: 81,000,000 | H62: =Table5402945[[#This Row],[Yurtiçi İhraç Limiti Nominal Tutar (TL)]]/Table5402945[[#This Row],[Kurul karar tarihindeki TCMB Döviz Satış Kuru]] -> 11,999,289 | I62: 81,000,000 | J62: =Table5402945[[#This Row],[Yurtiçi İhraç Limiti Nominal Tutar (TL)]]-Table5402945[[#This Row],[Yurtiçi Satışı Gerçekleşen Nominal Tutar (TL)]] -> 0 | P62: 6.7504
A63: 59 | B63: AKBANK T.A.Ş. | C63: Banka | D63: Borçlanma Aracı | E63: 2020-04-16 | F63: Nitelikli | G63: 7,500,000,000 | H63: =Table5402945[[#This Row],[Yurtiçi İhraç Limiti Nominal Tutar (TL)]]/Table5402945[[#This Row],[Kurul karar tarihindeki TCMB Döviz Satış Kuru]] -> 1,083,862,017 | I63: 0 | J63: =Table5402945[[#This Row],[Yurtiçi İhraç Limiti Nominal Tutar (TL)]]-Table5402945[[#This Row],[Yurtiçi Satışı Gerçekleşen Nominal Tutar (TL)]] -> 7,500,000,000 | P63: 6.9197
A64: 60 | B64: AKBANK T.A.Ş. | C64: Banka | D64: İTMK | E64: 2020-04-16 | F64: Yurtdışı | K64: 1,500,000,000 | L64: TL | M64: 0 | N64: =K64-M64 -> 1,500,000,000 | O64: 0 | P64: 6.9197
A65: 61 | B65: AKTİF BANK SUKUK VARLIK KİRALAMA A.Ş. | C65: Finansal Kurum | D65: Kira Sertifikası | E65: 2020-04-16 | F65: Nitelikli | G65: 430,000,000 | H65: =Table5402945[[#This Row],[Yurtiçi İhraç Limiti Nominal Tutar (TL)]]/Table5402945[[#This Row],[Kurul karar tarihindeki TCMB Döviz Satış Kuru]] -> 62,141,422 | I65: 420,000,000 | J65: =Table5402945[[#This Row],[Yurtiçi İhraç Limiti Nominal Tutar (TL)]]-Table5402945[[#This Row],[Yurtiçi Satışı Gerçekleşen Nominal Tutar (TL)]] -> 10,000,000 | P65: 6.9197
A66: 62 | B66: DEVA HOLDİNG A.Ş. | C66: Reel Sektör | D66: Borçlanma Aracı | E66: 2020-04-16 | F66: Nitelikli | G66: 250,000,000 | H66: =Table5402945[[#This Row],[Yurtiçi İhraç Limiti Nominal Tutar (TL)]]/Table5402945[[#This Row],[Kurul karar tarihindeki TCMB Döviz Satış Kuru]] -> 36,128,734 | I66: 130,000,000 | J66: =Table5402945[[#This Row],[Yurtiçi İhraç Limiti Nominal Tutar (TL)]]-Table5402945[[#This Row],[Yurtiçi Satışı Gerçekleşen Nominal Tutar (TL)]] -> 120,000,000 | P66: 6.9197
A67: 63 | B67: TÜRK EKONOMİ BANKASI A.Ş. | C67: Banka | D67: Borçlanma Aracı | E67: 2020-04-16 | F67: Halka Arz/Tahsisli/Nitelikli | G67: 23,000,000,000 | H67: =Table5402945[[#This Row],[Yurtiçi İhraç Limiti Nominal Tutar (TL)]]/Table5402945[[#This Row],[Kurul karar tarihindeki TCMB Döviz Satış Kuru]] -> 3,323,843,519 | I67: 8,609,637,605 | J67: =Table5402945[[#This Row],[Yurtiçi İhraç Limiti Nominal Tutar (TL)]]-Table5402945[[#This Row],[Yurtiçi Satışı Gerçekleşen Nominal Tutar (TL)]] -> 14,390,362,395 | P67: 6.9197
A68: 64 | B68: QNB FİNANS VARLIK KİRALAMA A.Ş. | C68: Finansal Kurum | D68: Kira Sertifikası | E68: 2020-04-22 | F68: Tahsisli/Nitelikli | G68: 1,000,000,000 | H68: =Table5402945[[#This Row],[Yurtiçi İhraç Limiti Nominal Tutar (TL)]]/Table5402945[[#This Row],[Kurul karar tarihindeki TCMB Döviz Satış Kuru]] -> 143,198,774 | I68: 0 | J68: =Table5402945[[#This Row],[Yurtiçi İhraç Limiti Nominal Tutar (TL)]]-Table5402945[[#This Row],[Yurtiçi Satışı Gerçekleşen Nominal Tutar (TL)]] -> 1,000,000,000 | P68: 6.9833
A69: 65 | B69: TÜRKİYE GARANTİ BANKASI A.Ş. | C69: Banka | D69: İTMK | E69: 2020-04-22 | F69: Yurtdışı | K69: 750,000,000 | L69: Euro | M69: 0 | N69: =K69-M69 -> 750,000,000 | O69: 0 | P69: 6.9833
A70: 66 | B70: TÜRKİYE HALK BANKASI A.Ş. | C70: Banka | D70: İTMK | E70: 2020-04-22 | F70: Tahsisli/Nitelikli | G70: 15,000,000,000 | H70: =Table5402945[[#This Row],[Yurtiçi İhraç Limiti Nominal Tutar (TL)]]/Table5402945[[#This Row],[Kurul karar tarihindeki TCMB Döviz Satış Kuru]] -> 2,147,981,613 | I70: 0 | J70: =Table5402945[[#This Row],[Yurtiçi İhraç Limiti Nominal Tutar (TL)]]-Table5402945[[#This Row],[Yurtiçi Satışı Gerçekleşen Nominal Tutar (TL)]] -> 15,000,000,000 | P70: 6.9833
A71: 67 | B71: AKTIF YATIRIM BANKASI A.S. (1) NOLU VARLIK FINANSMANI FONU | C71: Finansal Kurum | D71: VDMK | E71: 2020-04-30 | F71: Nitelikli | G71: 800,000,000 | H71: =Table5402945[[#This Row],[Yurtiçi İhraç Limiti Nominal Tutar (TL)]]/Table5402945[[#This Row],[Kurul karar tarihindeki TCMB Döviz Satış Kuru]] -> 114,539,337 | I71: 628,000,000 | J71: =Table5402945[[#This Row],[Yurtiçi İhraç Limiti Nominal Tutar (TL)]]-Table5402945[[#This Row],[Yurtiçi Satışı Gerçekleşen Nominal Tutar (TL)]] -> 172,000,000 | P71: 6.9845
A72: 68 | B72: BOĞAZİÇİ VARLIK YÖNETİM A.Ş. | C72: Finansal Kurum | D72: Borçlanma Aracı | E72: 2020-04-30 | F72: Nitelikli | G72: 30,000,000 | H72: =Table5402945[[#This Row],[Yurtiçi İhraç Limiti Nominal Tutar (TL)]]/Table5402945[[#This Row],[Kurul karar tarihindeki TCMB Döviz Satış Kuru]] -> 4,295,225 | I72: 30,000,000 | J72: =Table5402945[[#This Row],[Yurtiçi İhraç Limiti Nominal Tutar (TL)]]-Table5402945[[#This Row],[Yurtiçi Satışı Gerçekleşen Nominal Tutar (TL)]] -> 0 | P72: 6.9845
A73: 69 | B73: HALK VARLIK KİRALAMA A.Ş. | C73: Finansal Kurum | D73: Kira Sertifikası | E73: 2020-04-30 | F73: Tahsisli/Nitelikli | G73: 2,000,000,000 | H73: =Table5402945[[#This Row],[Yurtiçi İhraç Limiti Nominal Tutar (TL)]]/Table5402945[[#This Row],[Kurul karar tarihindeki TCMB Döviz Satış Kuru]] -> 286,348,343 | I73: 855,000,000 | J73: =Table5402945[[#This Row],[Yurtiçi İhraç Limiti Nominal Tutar (TL)]]-Table5402945[[#This Row],[Yurtiçi Satışı Gerçekleşen Nominal Tutar (TL)]] -> 1,145,000,000 | P73: 6.9845
A74: 70 | B74: NUROL YATIRIM BANKASI A.Ş. | C74: Banka | D74: Borçlanma Aracı | E74: 2020-04-30 | F74: Nitelikli | G74: 600,000,000 | H74: =Table5402945[[#This Row],[Yurtiçi İhraç Limiti Nominal Tutar (TL)]]/Table5402945[[#This Row],[Kurul karar tarihindeki TCMB Döviz Satış Kuru]] -> 85,904,503 | I74: 600,000,000 | J74: =Table5402945[[#This Row],[Yurtiçi İhraç Limiti Nominal Tutar (TL)]]-Table5402945[[#This Row],[Yurtiçi Satışı Gerçekleşen Nominal Tutar (TL)]] -> 0 | P74: 6.9845
A75: 71 | B75: VAKIF FİNANSAL KİRALAMA A.Ş. | C75: Finansal Kurum | D75: Borçlanma Aracı | E75: 2020-04-30 | F75: Tahsisli/Nitelikli | G75: 500,000,000 | H75: =Table5402945[[#This Row],[Yurtiçi İhraç Limiti Nominal Tutar (TL)]]/Table5402945[[#This Row],[Kurul karar tarihindeki TCMB Döviz Satış Kuru]] -> 71,587,086 | I75: 50,000,000 | J75: =Table5402945[[#This Row],[Yurtiçi İhraç Limiti Nominal Tutar (TL)]]-Table5402945[[#This Row],[Yurtiçi Satışı Gerçekleşen Nominal Tutar (TL)]] -> 450,000,000 | P75: 6.9845
A76: 72 | B76: AK FİNANSAL KİRALAMA A.Ş. | C76: Finansal Kurum | D76: Borçlanma Aracı | E76: 2020-05-07 | F76: Tahsisli/Nitelikli | G76: 1,500,000,000 | H76: =Table5402945[[#This Row],[Yurtiçi İhraç Limiti Nominal Tutar (TL)]]/Table5402945[[#This Row],[Kurul karar tarihindeki TCMB Döviz Satış Kuru]] -> 207,357,027 | I76: 0 | J76: =Table5402945[[#This Row],[Yurtiçi İhraç Limiti Nominal Tutar (TL)]]-Table5402945[[#This Row],[Yurtiçi Satışı Gerçekleşen Nominal Tutar (TL)]] -> 1,500,000,000 | P76: 7.2339
A77: 73 | B77: KARSAN OTOMOTİV SANAYİİ VE TİCARET A.Ş. | C77: Reel Sektör | D77: Borçlanma Aracı | E77: 2020-05-07 | F77: Tahsisli/Nitelikli | G77: 400,000,000 | H77: =Table5402945[[#This Row],[Yurtiçi İhraç Limiti Nominal Tutar (TL)]]/Table5402945[[#This Row],[Kurul karar tarihindeki TCMB Döviz Satış Kuru]] -> 55,295,207 | I77: 95,150,000 | J77: =Table5402945[[#This Row],[Yurtiçi İhraç Limiti Nominal Tutar (TL)]]-Table5402945[[#This Row],[Yurtiçi Satışı Gerçekleşen Nominal Tutar (TL)]] -> 304,850,000 | P77: 7.2339
A78: 74 | B78: BİEN YAPI ÜRÜNLERİ SANAYİ TURİZM VE TİCARET A.Ş. | C78: Reel Sektör | D78: Borçlanma Aracı | E78: 2020-05-14 | F78: Tahsisli | G78: 270,000,000 | H78: =Table5402945[[#This Row],[Yurtiçi İhraç Limiti Nominal Tutar (TL)]]/Table5402945[[#This Row],[Kurul karar tarihindeki TCMB Döviz Satış Kuru]] -> 38,755,239 | I78: 270,000,000 | J78: =Table5402945[[#This Row],[Yurtiçi İhraç Limiti Nominal Tutar (TL)]]-Table5402945[[#This Row],[Yurtiçi Satışı Gerçekleşen Nominal Tutar (TL)]] -> 0 | P78: 6.9668
A79: 75 | B79: QNB FİNANSBANK A.Ş. | C79: Banka | D79: Borçlanma Aracı | E79: 2020-05-14 | F79: Yurtdışı | K79: 5,000,000,000 | L79: Amerikan Doları | M79: =Table5402945[[#This Row],[YURTDIŞI Satışı Gerçekleşen Nominal Tutar (TL)**]]/7.4327 -> 190,654,574 | N79: =K79-M79 -> 4,809,345,426 | O79: 1,417,078,250 | P79: 6.9668
A80: 76 | B80: ŞEKER FİNANSAL KİRALAMA A.Ş. | C80: Finansal Kurum | D80: Borçlanma Aracı | E80: 2020-05-14 | F80: Halka Arz/Tahsisli/Nitelikli | G80: 81,500,000 | H80: =Table5402945[[#This Row],[Yurtiçi İhraç Limiti Nominal Tutar (TL)]]/Table5402945[[#This Row],[Kurul karar tarihindeki TCMB Döviz Satış Kuru]] -> 11,698,341 | I80: 81,500,000 | J80: =Table5402945[[#This Row],[Yurtiçi İhraç Limiti Nominal Tutar (TL)]]-Table5402945[[#This Row],[Yurtiçi Satışı Gerçekleşen Nominal Tutar (TL)]] -> 0 | P80: 6.9668
A81: 77 | B81: TURKISH BANK A.Ş. | C81: Banka | D81: Borçlanma Aracı | E81: 2020-05-14 | F81: Tahsisli/Nitelikli | G81: 170,000,000 | H81: =Table5402945[[#This Row],[Yurtiçi İhraç Limiti Nominal Tutar (TL)]]/Table5402945[[#This Row],[Kurul karar tarihindeki TCMB Döviz Satış Kuru]] -> 24,401,447 | I81: 78,000,000 | J81: =Table5402945[[#This Row],[Yurtiçi İhraç Limiti Nominal Tutar (TL)]]-Table5402945[[#This Row],[Yurtiçi Satışı Gerçekleşen Nominal Tutar (TL)]] -> 92,000,000 | P81: 6.9668
A82: 78 | B82: DENGE VARLIK YÖNETİM A.Ş. | C82: Finansal Kurum | D82: Borçlanma Aracı | E82: 2020-05-14 | F82: Tahsisli/Nitelikli | G82: 46,000,000 | H82: =Table5402945[[#This Row],[Yurtiçi İhraç Limiti Nominal Tutar (TL)]]/Table5402945[[#This Row],[Kurul karar tarihindeki TCMB Döviz Satış Kuru]] -> 6,602,744 | I82: 0 | J82: =Table5402945[[#This Row],[Yurtiçi İhraç Limiti Nominal Tutar (TL)]]-Table5402945[[#This Row],[Yurtiçi Satışı Gerçekleşen Nominal Tutar (TL)]] -> 46,000,000 | P82: 6.9668
A83: 79 | B83: TACİRLER YATIRIM MENKUL DEĞERLER A.Ş. | C83: Finansal Kurum | D83: Borçlanma Aracı | E83: 2020-05-21 | F83: Nitelikli | G83: 400,000,000 | H83: =Table5402945[[#This Row],[Yurtiçi İhraç Limiti Nominal Tutar (TL)]]/Table5402945[[#This Row],[Kurul karar tarihindeki TCMB Döviz Satış Kuru]] -> 58,819,204 | I83: 400,000,000 | J83: =Table5402945[[#This Row],[Yurtiçi İhraç Limiti Nominal Tutar (TL)]]-Table5402945[[#This Row],[Yurtiçi Satışı Gerçekleşen Nominal Tutar (TL)]] -> 0 | P83: 6.8005
A84: 80 | B84: YAPI KREDİ FİNANSAL KİRALAMA A.O. | C84: Finansal Kurum | D84: Borçlanma Aracı | E84: 2020-05-21 | F84: Nitelikli | G84: 4,500,000,000 | H84: =Table5402945[[#This Row],[Yurtiçi İhraç Limiti Nominal Tutar (TL)]]/Table5402945[[#This Row],[Kurul karar tarihindeki TCMB Döviz Satış Kuru]] -> 661,716,050 | I84: 0 | J84: =Table5402945[[#This Row],[Yurtiçi İhraç Limiti Nominal Tutar (TL)]]-Table5402945[[#This Row],[Yurtiçi Satışı Gerçekleşen Nominal Tutar (TL)]] -> 4,500,000,000 | P84: 6.8005
A85: 81 | B85: CREDITWEST FAKTORİNG A.Ş. | C85: Finansal Kurum | D85: Borçlanma Aracı | E85: 2020-06-04 | F85: Nitelikli | G85: 180,000,000 | H85: =Table5402945[[#This Row],[Yurtiçi İhraç Limiti Nominal Tutar (TL)]]/Table5402945[[#This Row],[Kurul karar tarihindeki TCMB Döviz Satış Kuru]] -> 26,628,007 | I85: 102,850,000 | J85: =Table5402945[[#This Row],[Yurtiçi İhraç Limiti Nominal Tutar (TL)]]-Table5402945[[#This Row],[Yurtiçi Satışı Gerçekleşen Nominal Tutar (TL)]] -> 77,150,000 | P85: 6.7598
A86: 82 | B86: ÇİMSA ÇİMENTO SANAYİ VE TİCARET A.Ş. | C86: Reel Sektör | D86: Borçlanma Aracı | E86: 2020-06-04 | F86: Nitelikli | G86: 1,000,000,000 | H86: =Table5402945[[#This Row],[Yurtiçi İhraç Limiti Nominal Tutar (TL)]]/Table5402945[[#This Row],[Kurul karar tarihindeki TCMB Döviz Satış Kuru]] -> 147,933,371 | I86: 0 | J86: =Table5402945[[#This Row],[Yurtiçi İhraç Limiti Nominal Tutar (TL)]]-Table5402945[[#This Row],[Yurtiçi Satışı Gerçekleşen Nominal Tutar (TL)]] -> 1,000,000,000 | P86: 6.7598
A87: 83 | B87: EKO FAKTORİNG A.Ş. | C87: Finansal Kurum | D87: Borçlanma Aracı | E87: 2020-06-04 | F87: Nitelikli | G87: 70,000,000 | H87: =Table5402945[[#This Row],[Yurtiçi İhraç Limiti Nominal Tutar (TL)]]/Table5402945[[#This Row],[Kurul karar tarihindeki TCMB Döviz Satış Kuru]] -> 10,355,336 | I87: 70,000,000 | J87: =Table5402945[[#This Row],[Yurtiçi İhraç Limiti Nominal Tutar (TL)]]-Table5402945[[#This Row],[Yurtiçi Satışı Gerçekleşen Nominal Tutar (TL)]] -> 0 | P87: 6.7598
A88: 84 | B88: HALK VARLIK KİRALAMA A.Ş. | C88: Finansal Kurum | D88: Kira Sertifikası | E88: 2020-06-04 | F88: Tahsisli/Nitelikli | G88: 600,000,000 | H88: =Table5402945[[#This Row],[Yurtiçi İhraç Limiti Nominal Tutar (TL)]]/Table5402945[[#This Row],[Kurul karar tarihindeki TCMB Döviz Satış Kuru]] -> 88,760,022 | I88: 150,000,000 | J88: =Table5402945[[#This Row],[Yurtiçi İhraç Limiti Nominal Tutar (TL)]]-Table5402945[[#This Row],[Yurtiçi Satışı Gerçekleşen Nominal Tutar (TL)]] -> 450,000,000 | P88: 6.7598
A89: 85 | B89: PHİLLİPCAPİTAL MENKUL DEĞERLER A.Ş. | C89: Finansal Kurum | D89: Borçlanma Aracı | E89: 2020-06-04 | F89: Tahsisli/Nitelikli | G89: 200,000,000 | H89: =Table5402945[[#This Row],[Yurtiçi İhraç Limiti Nominal Tutar (TL)]]/Table5402945[[#This Row],[Kurul karar tarihindeki TCMB Döviz Satış Kuru]] -> 29,586,674 | I89: 191,575,000 | J89: =Table5402945[[#This Row],[Yurtiçi İhraç Limiti Nominal Tutar (TL)]]-Table5402945[[#This Row],[Yurtiçi Satışı Gerçekleşen Nominal Tutar (TL)]] -> 8,425,000 | P89: 6.7598
A90: 86 | B90: TÜRKİYE İŞ BANKASI A.Ş | C90: Banka | D90: İTMK | E90: 2020-06-04 | F90: Yurtdışı | K90: 500,000,000 | L90: Euro | M90: 0 | N90: =K90-M90 -> 500,000,000 | O90: 0 | P90: 6.7598
A91: 87 | B91: ATILIM FAKTORİNG A.Ş. | C91: Finansal Kurum | D91: Borçlanma Aracı | E91: 2020-06-11 | F91: Nitelikli | G91: 76,000,000 | H91: =Table5402945[[#This Row],[Yurtiçi İhraç Limiti Nominal Tutar (TL)]]/Table5402945[[#This Row],[Kurul karar tarihindeki TCMB Döviz Satış Kuru]] -> 11,184,859 | I91: 15,000,000 | J91: =Table5402945[[#This Row],[Yurtiçi İhraç Limiti Nominal Tutar (TL)]]-Table5402945[[#This Row],[Yurtiçi Satışı Gerçekleşen Nominal Tutar (TL)]] -> 61,000,000 | P91: 6.7949
A92: 88 | B92: DENİZ FİNANSAL KİRALAMA A.Ş. | C92: Finansal Kurum | D92: Borçlanma Aracı | E92: 2020-06-11 | F92: Nitelikli | G92: 2,277,000,000 | H92: =Table5402945[[#This Row],[Yurtiçi İhraç Limiti Nominal Tutar (TL)]]/Table5402945[[#This Row],[Kurul karar tarihindeki TCMB Döviz Satış Kuru]] -> 335,104,269 | I92: 609,300,000 | J92: =Table5402945[[#This Row],[Yurtiçi İhraç Limiti Nominal Tutar (TL)]]-Table5402945[[#This Row],[Yurtiçi Satışı Gerçekleşen Nominal Tutar (TL)]] -> 1,667,700,000 | P92: 6.7949
A93: 89 | B93: DORUK FAKTORİNG A.Ş. | C93: Finansal Kurum | D93: Borçlanma Aracı | E93: 2020-06-11 | F93: Nitelikli | G93: 128,000,000 | H93: =Table5402945[[#This Row],[Yurtiçi İhraç Limiti Nominal Tutar (TL)]]/Table5402945[[#This Row],[Kurul karar tarihindeki TCMB Döviz Satış Kuru]] -> 18,837,658 | I93: 30,000,000 | J93: =Table5402945[[#This Row],[Yurtiçi İhraç Limiti Nominal Tutar (TL)]]-Table5402945[[#This Row],[Yurtiçi Satışı Gerçekleşen Nominal Tutar (TL)]] -> 98,000,000 | P93: 6.7949
A94: 90 | B94: LİDER FAKTORİNG A.Ş. | C94: Finansal Kurum | D94: Borçlanma Aracı | E94: 2020-06-11 | F94: Tahsisli/Nitelikli | G94: 130,000,000 | H94: =Table5402945[[#This Row],[Yurtiçi İhraç Limiti Nominal Tutar (TL)]]/Table5402945[[#This Row],[Kurul karar tarihindeki TCMB Döviz Satış Kuru]] -> 19,131,996 | I94: 130,000,000 | J94: =Table5402945[[#This Row],[Yurtiçi İhraç Limiti Nominal Tutar (TL)]]-Table5402945[[#This Row],[Yurtiçi Satışı Gerçekleşen Nominal Tutar (TL)]] -> 0 | P94: 6.7949
A95: 91 | B95: AKTİF YATIRIM BANKASI A.Ş. | C95: Banka | D95: Borçlanma Aracı | E95: 2020-06-18 | F95: Halka Arz/Nitelikli | G95: 1,700,000,000 | H95: =Table5402945[[#This Row],[Yurtiçi İhraç Limiti Nominal Tutar (TL)]]/Table5402945[[#This Row],[Kurul karar tarihindeki TCMB Döviz Satış Kuru]] -> 247,910,985 | I95: 1,700,000,000 | J95: =Table5402945[[#This Row],[Yurtiçi İhraç Limiti Nominal Tutar (TL)]]-Table5402945[[#This Row],[Yurtiçi Satışı Gerçekleşen Nominal Tutar (TL)]] -> 0 | P95: 6.8573
A96: 92 | B96: MAPA İNŞAAT TİCARET A.Ş. | C96: Reel Sektör | D96: Borçlanma Aracı | E96: 2020-06-18 | F96: Yurtdışı | K96: 1,000,000,000 | L96: Amerikan Doları | M96: 0 | N96: =K96-M96 -> 1,000,000,000 | O96: 0 | P96: 6.8573
A97: 93 | B97: PASHA YATIRIM BANKASI A.Ş. TARFİN VARLIK FİNANSMANI FONU | C97: Finansal Kurum | D97: VDMK | E97: 2020-06-18 | F97: Nitelikli | G97: 100,000,000 | H97: =Table5402945[[#This Row],[Yurtiçi İhraç Limiti Nominal Tutar (TL)]]/Table5402945[[#This Row],[Kurul karar tarihindeki TCMB Döviz Satış Kuru]] -> 14,582,999 | I97: 54,039,448 | J97: =Table5402945[[#This Row],[Yurtiçi İhraç Limiti Nominal Tutar (TL)]]-Table5402945[[#This Row],[Yurtiçi Satışı Gerçekleşen Nominal Tutar (TL)]] -> 45,960,552 | P97: 6.8573
A98: 94 | B98: ŞEKER FAKTORİNG A.Ş | C98: Finansal Kurum | D98: Borçlanma Aracı | E98: 2020-06-18 | F98: Nitelikli | G98: 71,000,000 | H98: =Table5402945[[#This Row],[Yurtiçi İhraç Limiti Nominal Tutar (TL)]]/Table5402945[[#This Row],[Kurul karar tarihindeki TCMB Döviz Satış Kuru]] -> 10,353,929 | I98: 70,000,000 | J98: =Table5402945[[#This Row],[Yurtiçi İhraç Limiti Nominal Tutar (TL)]]-Table5402945[[#This Row],[Yurtiçi Satışı Gerçekleşen Nominal Tutar (TL)]] -> 1,000,000 | P98: 6.8573
A99: 95 | B99: ŞEKER FİNANSAL KİRALAMA A.Ş. | C99: Finansal Kurum | D99: Borçlanma Aracı | E99: 2020-06-18 | F99: Nitelikli | G99: 86,000,000 | H99: =Table5402945[[#This Row],[Yurtiçi İhraç Limiti Nominal Tutar (TL)]]/Table5402945[[#This Row],[Kurul karar tarihindeki TCMB Döviz Satış Kuru]] -> 12,541,379 | I99: 86,000,000 | J99: =Table5402945[[#This Row],[Yurtiçi İhraç Limiti Nominal Tutar (TL)]]-Table5402945[[#This Row],[Yurtiçi Satışı Gerçekleşen Nominal Tutar (TL)]] -> 0 | P99: 6.8573
A100: 96 | B100: ALJ FİNANSMAN A.Ş. | C100: Finansal Kurum | D100: Borçlanma Aracı | E100: 2020-06-25 | F100: Tahsisli/Nitelikli | G100: 350,000,000 | H100: =Table5402945[[#This Row],[Yurtiçi İhraç Limiti Nominal Tutar (TL)]]/Table5402945[[#This Row],[Kurul karar tarihindeki TCMB Döviz Satış Kuru]] -> 51,051,664 | I100: 0 | J100: =Table5402945[[#This Row],[Yurtiçi İhraç Limiti Nominal Tutar (TL)]]-Table5402945[[#This Row],[Yurtiçi Satışı Gerçekleşen Nominal Tutar (TL)]] -> 350,000,000 | P100: 6.8558
A101: 97 | B101: ALTERNATİF YATIRIM MENKUL DEĞERLER A.Ş. | C101: Finansal Kurum | D101: Borçlanma Aracı | E101: 2020-06-25 | F101: Nitelikli | G101: 32,000,000 | H101: =Table5402945[[#This Row],[Yurtiçi İhraç Limiti Nominal Tutar (TL)]]/Table5402945[[#This Row],[Kurul karar tarihindeki TCMB Döviz Satış Kuru]] -> 4,667,581 | I101: 0 | J101: =Table5402945[[#This Row],[Yurtiçi İhraç Limiti Nominal Tutar (TL)]]-Table5402945[[#This Row],[Yurtiçi Satışı Gerçekleşen Nominal Tutar (TL)]] -> 32,000,000 | P101: 6.8558
A102: 98 | B102: ALTERNATİF YATIRIM MENKUL DEĞERLER A.Ş. | C102: Finansal Kurum | D102: Borçlanma Aracı | E102: 2020-06-25 | F102: Nitelikli | G102: 74,500,000 | H102: =Table5402945[[#This Row],[Yurtiçi İhraç Limiti Nominal Tutar (TL)]]/Table5402945[[#This Row],[Kurul karar tarihindeki TCMB Döviz Satış Kuru]] -> 10,866,711 | I102: 0 | J102: =Table5402945[[#This Row],[Yurtiçi İhraç Limiti Nominal Tutar (TL)]]-Table5402945[[#This Row],[Yurtiçi Satışı Gerçekleşen Nominal Tutar (TL)]] -> 74,500,000 | P102: 6.8558
A103: 99 | B103: GARANTİ FAKTORİNG A.Ş. | C103: Finansal Kurum | D103: Borçlanma Aracı | E103: 2020-06-25 | F103: Nitelikli | G103: 619,000,000 | H103: =Table5402945[[#This Row],[Yurtiçi İhraç Limiti Nominal Tutar (TL)]]/Table5402945[[#This Row],[Kurul karar tarihindeki TCMB Döviz Satış Kuru]] -> 90,288,515 | I103: 618,961,895 | J103: =Table5402945[[#This Row],[Yurtiçi İhraç Limiti Nominal Tutar (TL)]]-Table5402945[[#This Row],[Yurtiçi Satışı Gerçekleşen Nominal Tutar (TL)]] -> 38,105 | P103: 6.8558
A104: 100 | B104: GLOBAL YATIRIM HOLDİNG A.Ş. | C104: Reel Sektör | D104: Borçlanma Aracı | E104: 2020-06-25 | F104: Nitelikli | G104: 300,000,000 | H104: =Table5402945[[#This Row],[Yurtiçi İhraç Limiti Nominal Tutar (TL)]]/Table5402945[[#This Row],[Kurul karar tarihindeki TCMB Döviz Satış Kuru]] -> 43,758,569 | I104: 104,415,000 | J104: =Table5402945[[#This Row],[Yurtiçi İhraç Limiti Nominal Tutar (TL)]]-Table5402945[[#This Row],[Yurtiçi Satışı Gerçekleşen Nominal Tutar (TL)]] -> 195,585,000 | P104: 6.8558
A105: 101 | B105: İŞ FİNANSAL KİRALAMA A.Ş. | C105: Finansal Kurum | D105: Borçlanma Aracı | E105: 2020-06-25 | F105: Tahsisli/Nitelikli | G105: 1,250,000,000 | H105: =Table5402945[[#This Row],[Yurtiçi İhraç Limiti Nominal Tutar (TL)]]/Table5402945[[#This Row],[Kurul karar tarihindeki TCMB Döviz Satış Kuru]] -> 182,327,372 | I105: 647,500,000 | J105: =Table5402945[[#This Row],[Yurtiçi İhraç Limiti Nominal Tutar (TL)]]-Table5402945[[#This Row],[Yurtiçi Satışı Gerçekleşen Nominal Tutar (TL)]] -> 602,500,000 | P105: 6.8558
A106: 102 | B106: BURGAN BANK A.Ş. | C106: Banka | D106: Borçlanma Aracı | E106: 2020-07-02 | F106: Tahsisli/Nitelikli | G106: 3,000,000,000 | H106: =Table5402945[[#This Row],[Yurtiçi İhraç Limiti Nominal Tutar (TL)]]/Table5402945[[#This Row],[Kurul karar tarihindeki TCMB Döviz Satış Kuru]] -> 437,623,993 | I106: 0 | J106: =Table5402945[[#This Row],[Yurtiçi İhraç Limiti Nominal Tutar (TL)]]-Table5402945[[#This Row],[Yurtiçi Satışı Gerçekleşen Nominal Tutar (TL)]] -> 3,000,000,000 | P106: 6.8552
A107: 103 | B107: BURGAN FİNANSAL KİRALAMA A.Ş. | C107: Finansal Kurum | D107: Borçlanma Aracı | E107: 2020-07-02 | F107: Tahsisli/Nitelikli | G107: 150,000,000 | H107: =Table5402945[[#This Row],[Yurtiçi İhraç Limiti Nominal Tutar (TL)]]/Table5402945[[#This Row],[Kurul karar tarihindeki TCMB Döviz Satış Kuru]] -> 21,881,200 | I107: 0 | J107: =Table5402945[[#This Row],[Yurtiçi İhraç Limiti Nominal Tutar (TL)]]-Table5402945[[#This Row],[Yurtiçi Satışı Gerçekleşen Nominal Tutar (TL)]] -> 150,000,000 | P107: 6.8552
A108: 104 | B108: ODEA BANK A.Ş. | C108: Banka | D108: Borçlanma Aracı | E108: 2020-07-02 | F108: Tahsisli/Nitelikli | G108: 4,000,000,000 | H108: =Table5402945[[#This Row],[Yurtiçi İhraç Limiti Nominal Tutar (TL)]]/Table5402945[[#This Row],[Kurul karar tarihindeki TCMB Döviz Satış Kuru]] -> 583,498,658 | I108: 1,000,965,000 | J108: =Table5402945[[#This Row],[Yurtiçi İhraç Limiti Nominal Tutar (TL)]]-Table5402945[[#This Row],[Yurtiçi Satışı Gerçekleşen Nominal Tutar (TL)]] -> 2,999,035,000 | P108: 6.8552
A109: 105 | B109: ORFİN FİNANSMAN A.Ş. | C109: Finansal Kurum | D109: Borçlanma Aracı | E109: 2020-07-02 | F109: Nitelikli | G109: 400,000,000 | H109: =Table5402945[[#This Row],[Yurtiçi İhraç Limiti Nominal Tutar (TL)]]/Table5402945[[#This Row],[Kurul karar tarihindeki TCMB Döviz Satış Kuru]] -> 58,349,866 | I109: 364,000,000 | J109: =Table5402945[[#This Row],[Yurtiçi İhraç Limiti Nominal Tutar (TL)]]-Table5402945[[#This Row],[Yurtiçi Satışı Gerçekleşen Nominal Tutar (TL)]] -> 36,000,000 | P109: 6.8552
A110: 106 | B110: QNB FİNANS FİNANSAL KİRALAMA A.Ş. | C110: Finansal Kurum | D110: Borçlanma Aracı | E110: 2020-07-02 | F110: Tahsisli/Nitelikli | G110: 2,000,000,000 | H110: =Table5402945[[#This Row],[Yurtiçi İhraç Limiti Nominal Tutar (TL)]]/Table5402945[[#This Row],[Kurul karar tarihindeki TCMB Döviz Satış Kuru]] -> 291,749,329 | I110: 801,045,000 | J110: =Table5402945[[#This Row],[Yurtiçi İhraç Limiti Nominal Tutar (TL)]]-Table5402945[[#This Row],[Yurtiçi Satışı Gerçekleşen Nominal Tutar (TL)]] -> 1,198,955,000 | P110: 6.8552
A111: 107 | B111: ŞEKER FİNANSAL KİRALAMA A.Ş. | C111: Finansal Kurum | D111: Borçlanma Aracı | E111: 2020-07-02 | F111: Nitelikli | G111: 240,000,000 | H111: =Table5402945[[#This Row],[Yurtiçi İhraç Limiti Nominal Tutar (TL)]]/Table5402945[[#This Row],[Kurul karar tarihindeki TCMB Döviz Satış Kuru]] -> 35,009,919 | I111: 240,000,000 | J111: =Table5402945[[#This Row],[Yurtiçi İhraç Limiti Nominal Tutar (TL)]]-Table5402945[[#This Row],[Yurtiçi Satışı Gerçekleşen Nominal Tutar (TL)]] -> 0 | P111: 6.8552
A112: 108 | B112: YAPI KREDİ FAKTORİNG A.Ş. | C112: Finansal Kurum | D112: Borçlanma Aracı | E112: 2020-07-02 | F112: Tahsisli/Nitelikli | G112: 700,000,000 | H112: =Table5402945[[#This Row],[Yurtiçi İhraç Limiti Nominal Tutar (TL)]]/Table5402945[[#This Row],[Kurul karar tarihindeki TCMB Döviz Satış Kuru]] -> 102,112,265 | I112: 699,375,000 | J112: =Table5402945[[#This Row],[Yurtiçi İhraç Limiti Nominal Tutar (TL)]]-Table5402945[[#This Row],[Yurtiçi Satışı Gerçekleşen Nominal Tutar (TL)]] -> 625,000 | P112: 6.8552
A113: 109 | B113: EREĞLİ TEKSTİL TURİZM SANAYİ VE TİCARET A.Ş. | C113: Reel Sektör | D113: Borçlanma Aracı | E113: 2020-07-09 | F113: Nitelikli | G113: 600,000,000 | H113: =Table5402945[[#This Row],[Yurtiçi İhraç Limiti Nominal Tutar (TL)]]/Table5402945[[#This Row],[Kurul karar tarihindeki TCMB Döviz Satış Kuru]] -> 87,394,762 | I113: 407,020,000 | J113: =Table5402945[[#This Row],[Yurtiçi İhraç Limiti Nominal Tutar (TL)]]-Table5402945[[#This Row],[Yurtiçi Satışı Gerçekleşen Nominal Tutar (TL)]] -> 192,980,000 | P113: 6.8654
A114: 110 | B114: GELECEK VARLIK YÖNETİMİ A.Ş. | C114: Finansal Kurum | D114: Borçlanma Aracı | E114: 2020-07-09 | F114: Tahsisli/Nitelikli | G114: 900,000,000 | H114: =Table5402945[[#This Row],[Yurtiçi İhraç Limiti Nominal Tutar (TL)]]/Table5402945[[#This Row],[Kurul karar tarihindeki TCMB Döviz Satış Kuru]] -> 131,092,143 | I114: 0 | J114: =Table5402945[[#This Row],[Yurtiçi İhraç Limiti Nominal Tutar (TL)]]-Table5402945[[#This Row],[Yurtiçi Satışı Gerçekleşen Nominal Tutar (TL)]] -> 900,000,000 | P114: 6.8654
A115: 111 | B115: ICBC TURKEY BANK A.Ş. | C115: Banka | D115: Borçlanma Aracı | E115: 2020-07-09 | F115: Nitelikli | G115: 350,000,000 | H115: =Table5402945[[#This Row],[Yurtiçi İhraç Limiti Nominal Tutar (TL)]]/Table5402945[[#This Row],[Kurul karar tarihindeki TCMB Döviz Satış Kuru]] -> 50,980,278 | I115: 0 | J115: =Table5402945[[#This Row],[Yurtiçi İhraç Limiti Nominal Tutar (TL)]]-Table5402945[[#This Row],[Yurtiçi Satışı Gerçekleşen Nominal Tutar (TL)]] -> 350,000,000 | P115: 6.8654
A116: 112 | B116: İŞ GAYRİMENKUL YATIRIM ORTAKLIĞI A.Ş. | C116: Finansal Kurum | D116: Borçlanma Aracı | E116: 2020-07-09 | F116: Tahsisli/Nitelikli | G116: 1,000,000,000 | H116: =Table5402945[[#This Row],[Yurtiçi İhraç Limiti Nominal Tutar (TL)]]/Table5402945[[#This Row],[Kurul karar tarihindeki TCMB Döviz Satış Kuru]] -> 145,657,937 | I116: 300,750,000 | J116: =Table5402945[[#This Row],[Yurtiçi İhraç Limiti Nominal Tutar (TL)]]-Table5402945[[#This Row],[Yurtiçi Satışı Gerçekleşen Nominal Tutar (TL)]] -> 699,250,000 | P116: 6.8654
A117: 113 | B117: DEVİR FAKTORİNG A.Ş. | C117: Finansal Kurum | D117: Borçlanma Aracı | E117: 2020-07-16 | F117: Tahsisli/Nitelikli | G117: 69,000,000 | H117: =Table5402945[[#This Row],[Yurtiçi İhraç Limiti Nominal Tutar (TL)]]/Table5402945[[#This Row],[Kurul karar tarihindeki TCMB Döviz Satış Kuru]] -> 10,062,269 | I117: 38,773,000 | J117: =Table5402945[[#This Row],[Yurtiçi İhraç Limiti Nominal Tutar (TL)]]-Table5402945[[#This Row],[Yurtiçi Satışı Gerçekleşen Nominal Tutar (TL)]] -> 30,227,000 | P117: 6.8573
A118: 114 | B118: KENT FAKTORİNG A.Ş | C118: Finansal Kurum | D118: Borçlanma Aracı | E118: 2020-07-16 | F118: Tahsisli/Nitelikli | G118: 100,000,000 | H118: =Table5402945[[#This Row],[Yurtiçi İhraç Limiti Nominal Tutar (TL)]]/Table5402945[[#This Row],[Kurul karar tarihindeki TCMB Döviz Satış Kuru]] -> 14,582,999 | I118: 31,416,000 | J118: =Table5402945[[#This Row],[Yurtiçi İhraç Limiti Nominal Tutar (TL)]]-Table5402945[[#This Row],[Yurtiçi Satışı Gerçekleşen Nominal Tutar (TL)]] -> 68,584,000 | P118: 6.8573
A119: 115 | B119: AKBANK T.A.Ş. | C119: Banka | D119: Borçlanma Aracı | E119: 2020-07-23 | F119: Tahsisli/Nitelikli | G119: 30,000,000,000 | H119: =Table5402945[[#This Row],[Yurtiçi İhraç Limiti Nominal Tutar (TL)]]/Table5402945[[#This Row],[Kurul karar tarihindeki TCMB Döviz Satış Kuru]] -> 4,381,416,950 | I119: 949,920,000 | J119: =Table5402945[[#This Row],[Yurtiçi İhraç Limiti Nominal Tutar (TL)]]-Table5402945[[#This Row],[Yurtiçi Satışı Gerçekleşen Nominal Tutar (TL)]] -> 29,050,080,000 | P119: 6.8471
A120: 116 | B120: İSTANBUL FAKTORİNG A.Ş. | C120: Finansal Kurum | D120: Borçlanma Aracı | E120: 2020-07-23 | F120: Tahsisli | G120: 100,000,000 | H120: =Table5402945[[#This Row],[Yurtiçi İhraç Limiti Nominal Tutar (TL)]]/Table5402945[[#This Row],[Kurul karar tarihindeki TCMB Döviz Satış Kuru]] -> 14,604,723 | I120: 20,000,000 | J120: =Table5402945[[#This Row],[Yurtiçi İhraç Limiti Nominal Tutar (TL)]]-Table5402945[[#This Row],[Yurtiçi Satışı Gerçekleşen Nominal Tutar (TL)]] -> 80,000,000 | P120: 6.8471
A121: 117 | B121: NUROL YATIRIM BANKASI A.Ş. | C121: Banka | D121: VDMK | E121: 2020-07-23 | F121: Nitelikli | G121: 300,000,000 | H121: =Table5402945[[#This Row],[Yurtiçi İhraç Limiti Nominal Tutar (TL)]]/Table5402945[[#This Row],[Kurul karar tarihindeki TCMB Döviz Satış Kuru]] -> 43,814,170 | I121: 0 | J121: =Table5402945[[#This Row],[Yurtiçi İhraç Limiti Nominal Tutar (TL)]]-Table5402945[[#This Row],[Yurtiçi Satışı Gerçekleşen Nominal Tutar (TL)]] -> 300,000,000 | P121: 6.8471
A122: 118 | B122: TÜRKİYE VAKIFLAR BANKASI T.A.O. | C122: Banka | D122: Borçlanma Aracı | E122: 2020-07-23 | F122: Halka Arz/Tahsisli/Nitelikli | G122: 30,000,000,000 | H122: =Table5402945[[#This Row],[Yurtiçi İhraç Limiti Nominal Tutar (TL)]]/Table5402945[[#This Row],[Kurul karar tarihindeki TCMB Döviz Satış Kuru]] -> 4,381,416,950 | I122: 7,369,443,184 | J122: =Table5402945[[#This Row],[Yurtiçi İhraç Limiti Nominal Tutar (TL)]]-Table5402945[[#This Row],[Yurtiçi Satışı Gerçekleşen Nominal Tutar (TL)]] -> 22,630,556,816 | P122: 6.8471
A123: 119 | B123: KORTEKS MENSUCAT SANAYİ VE TİCARET A.Ş. | C123: Reel Sektör | D123: Borçlanma Aracı | E123: 2020-07-28 | F123: Nitelikli | G123: 700,000,000 | H123: =Table5402945[[#This Row],[Yurtiçi İhraç Limiti Nominal Tutar (TL)]]/Table5402945[[#This Row],[Kurul karar tarihindeki TCMB Döviz Satış Kuru]] -> 101,493,403 | I123: 100,750,000 | J123: =Table5402945[[#This Row],[Yurtiçi İhraç Limiti Nominal Tutar (TL)]]-Table5402945[[#This Row],[Yurtiçi Satışı Gerçekleşen Nominal Tutar (TL)]] -> 599,250,000 | P123: 6.8970
A124: 120 | B124: QNB FİNANSBANK A.Ş. | C124: Banka | D124: Borçlanma Aracı | E124: 2020-07-28 | F124: Halka Arz/Tahsisli/Nitelikli | G124: 29,500,000,000 | H124: =Table5402945[[#This Row],[Yurtiçi İhraç Limiti Nominal Tutar (TL)]]/Table5402945[[#This Row],[Kurul karar tarihindeki TCMB Döviz Satış Kuru]] -> 4,277,221,981 | I124: 3,028,515,000 | J124: =Table5402945[[#This Row],[Yurtiçi İhraç Limiti Nominal Tutar (TL)]]-Table5402945[[#This Row],[Yurtiçi Satışı Gerçekleşen Nominal Tutar (TL)]] -> 26,471,485,000 | P124: 6.8970
A125: 121 | B125: QNB FİNANSBANK A.Ş. | C125: Banka | D125: Borçlanma Aracı | E125: 2020-07-28 | F125: Halka Arz/Tahsisli/Nitelikli | G125: 500,000,000 | H125: =Table5402945[[#This Row],[Yurtiçi İhraç Limiti Nominal Tutar (TL)]]/Table5402945[[#This Row],[Kurul karar tarihindeki TCMB Döviz Satış Kuru]] -> 72,495,288 | I125: 0 | J125: =Table5402945[[#This Row],[Yurtiçi İhraç Limiti Nominal Tutar (TL)]]-Table5402945[[#This Row],[Yurtiçi Satışı Gerçekleşen Nominal Tutar (TL)]] -> 500,000,000 | P125: 6.8970
A126: 122 | B126: TAM FİNANS FAKTORİNG A.Ş. | C126: Finansal Kurum | D126: Borçlanma Aracı | E126: 2020-07-28 | F126: Tahsisli/Nitelikli | G126: 276,000,000 | H126: =Table5402945[[#This Row],[Yurtiçi İhraç Limiti Nominal Tutar (TL)]]/Table5402945[[#This Row],[Kurul karar tarihindeki TCMB Döviz Satış Kuru]] -> 40,017,399 | I126: 145,000,000 | J126: =Table5402945[[#This Row],[Yurtiçi İhraç Limiti Nominal Tutar (TL)]]-Table5402945[[#This Row],[Yurtiçi Satışı Gerçekleşen Nominal Tutar (TL)]] -> 131,000,000 | P126: 6.8970
A127: 123 | B127: TERA YATIRIM MENKUL DEĞERLER A.Ş. | C127: Finansal Kurum | D127: Borçlanma Aracı | E127: 2020-07-28 | F127: Tahsisli/Nitelikli | G127: 145,100,000 | H127: =Table5402945[[#This Row],[Yurtiçi İhraç Limiti Nominal Tutar (TL)]]/Table5402945[[#This Row],[Kurul karar tarihindeki TCMB Döviz Satış Kuru]] -> 21,038,133 | I127: 70,000,000 | J127: =Table5402945[[#This Row],[Yurtiçi İhraç Limiti Nominal Tutar (TL)]]-Table5402945[[#This Row],[Yurtiçi Satışı Gerçekleşen Nominal Tutar (TL)]] -> 75,100,000 | P127: 6.8970
A128: 124 | B128: AKİŞ GAYRİMENKUL YATIRIM ORTAKLIĞI A.Ş. | C128: Finansal Kurum | D128: Borçlanma Aracı | E128: 2020-08-13 | F128: Tahsisli/Nitelikli | G128: 250,000,000 | H128: =Table5402945[[#This Row],[Yurtiçi İhraç Limiti Nominal Tutar (TL)]]/Table5402945[[#This Row],[Kurul karar tarihindeki TCMB Döviz Satış Kuru]] -> 34,116,652 | I128: 0 | J128: =Table5402945[[#This Row],[Yurtiçi İhraç Limiti Nominal Tutar (TL)]]-Table5402945[[#This Row],[Yurtiçi Satışı Gerçekleşen Nominal Tutar (TL)]] -> 250,000,000 | P128: 7.3278
A129: 125 | B129: ŞEKER YATIRIM MENKUL DEĞERLER A.Ş. | C129: Finansal Kurum | D129: Borçlanma Aracı | E129: 2020-08-13 | F129: Nitelikli | G129: 123,000,000 | H129: =Table5402945[[#This Row],[Yurtiçi İhraç Limiti Nominal Tutar (TL)]]/Table5402945[[#This Row],[Kurul karar tarihindeki TCMB Döviz Satış Kuru]] -> 16,785,393 | I129: 123,000,000 | J129: =Table5402945[[#This Row],[Yurtiçi İhraç Limiti Nominal Tutar (TL)]]-Table5402945[[#This Row],[Yurtiçi Satışı Gerçekleşen Nominal Tutar (TL)]] -> 0 | P129: 7.3278
A130: 126 | B130: TEB FİNANSMAN A.Ş. | C130: Finansal Kurum | D130: Borçlanma Aracı | E130: 2020-08-13 | F130: Tahsisli/Nitelikli | G130: 946,900,000 | H130: =Table5402945[[#This Row],[Yurtiçi İhraç Limiti Nominal Tutar (TL)]]/Table5402945[[#This Row],[Kurul karar tarihindeki TCMB Döviz Satış Kuru]] -> 129,220,230 | I130: 109,925,000 | J130: =Table5402945[[#This Row],[Yurtiçi İhraç Limiti Nominal Tutar (TL)]]-Table5402945[[#This Row],[Yurtiçi Satışı Gerçekleşen Nominal Tutar (TL)]] -> 836,975,000 | P130: 7.3278
A131: 127 | B131: TÜRKİYE HALK BANKASI A.Ş. | C131: Banka | D131: Borçlanma Aracı | E131: 2020-08-13 | F131: Halka Arz/Tahsisli/Nitelikli | G131: 30,000,000,000 | H131: =Table5402945[[#This Row],[Yurtiçi İhraç Limiti Nominal Tutar (TL)]]/Table5402945[[#This Row],[Kurul karar tarihindeki TCMB Döviz Satış Kuru]] -> 4,093,998,199 | I131: 4,348,000,000 | J131: =Table5402945[[#This Row],[Yurtiçi İhraç Limiti Nominal Tutar (TL)]]-Table5402945[[#This Row],[Yurtiçi Satışı Gerçekleşen Nominal Tutar (TL)]] -> 25,652,000,000 | P131: 7.3278
A132: 128 | B132: ZKB VARLIK KİRALAMA A.Ş. | C132: Finansal Kurum | D132: Kira Sertifikası | E132: 2020-08-13 | F132: Tahsisli/Nitelikli | G132: 150,000,000 | H132: =Table5402945[[#This Row],[Yurtiçi İhraç Limiti Nominal Tutar (TL)]]/Table5402945[[#This Row],[Kurul karar tarihindeki TCMB Döviz Satış Kuru]] -> 20,469,991 | I132: 0 | J132: =Table5402945[[#This Row],[Yurtiçi İhraç Limiti Nominal Tutar (TL)]]-Table5402945[[#This Row],[Yurtiçi Satışı Gerçekleşen Nominal Tutar (TL)]] -> 150,000,000 | P132: 7.3278
A133: 129 | B133: ALNUS YATIRIM MENKUL DEĞERLER A.Ş. | C133: Finansal Kurum | D133: Borçlanma Aracı | E133: 2020-08-20 | F133: Nitelikli | G133: 60,000,000 | H133: =Table5402945[[#This Row],[Yurtiçi İhraç Limiti Nominal Tutar (TL)]]/Table5402945[[#This Row],[Kurul karar tarihindeki TCMB Döviz Satış Kuru]] -> 8,209,844 | I133: 0 | J133: =Table5402945[[#This Row],[Yurtiçi İhraç Limiti Nominal Tutar (TL)]]-Table5402945[[#This Row],[Yurtiçi Satışı Gerçekleşen Nominal Tutar (TL)]] -> 60,000,000 | P133: 7.3083
A134: 130 | B134: İŞ FAKTORİNG A.Ş. | C134: Finansal Kurum | D134: Borçlanma Aracı | E134: 2020-08-20 | F134: Tahsisli/Nitelikli | G134: 450,000,000 | H134: =Table5402945[[#This Row],[Yurtiçi İhraç Limiti Nominal Tutar (TL)]]/Table5402945[[#This Row],[Kurul karar tarihindeki TCMB Döviz Satış Kuru]] -> 61,573,827 | I134: 330,800,000 | J134: =Table5402945[[#This Row],[Yurtiçi İhraç Limiti Nominal Tutar (TL)]]-Table5402945[[#This Row],[Yurtiçi Satışı Gerçekleşen Nominal Tutar (TL)]] -> 119,200,000 | P134: 7.3083
A135: 131 | B135: MİGROS TİCARET A.Ş. | C135: Reel Sektör | D135: Borçlanma Aracı | E135: 2020-08-20 | F135: Tahsisli/Nitelikli | G135: 500,000,000 | H135: =Table5402945[[#This Row],[Yurtiçi İhraç Limiti Nominal Tutar (TL)]]/Table5402945[[#This Row],[Kurul karar tarihindeki TCMB Döviz Satış Kuru]] -> 68,415,363 | I135: 0 | J135: =Table5402945[[#This Row],[Yurtiçi İhraç Limiti Nominal Tutar (TL)]]-Table5402945[[#This Row],[Yurtiçi Satışı Gerçekleşen Nominal Tutar (TL)]] -> 500,000,000 | P135: 7.3083
A136: 132 | B136: MLP SAĞLIK HİZMETLERİ A.Ş. | C136: Reel Sektör | D136: Borçlanma Aracı | E136: 2020-08-20 | F136: Nitelikli | G136: 500,000,000 | H136: =Table5402945[[#This Row],[Yurtiçi İhraç Limiti Nominal Tutar (TL)]]/Table5402945[[#This Row],[Kurul karar tarihindeki TCMB Döviz Satış Kuru]] -> 68,415,363 | I136: 326,240,000 | J136: =Table5402945[[#This Row],[Yurtiçi İhraç Limiti Nominal Tutar (TL)]]-Table5402945[[#This Row],[Yurtiçi Satışı Gerçekleşen Nominal Tutar (TL)]] -> 173,760,000 | P136: 7.3083
A137: 133 | B137: YAPI KREDİ YATIRIM MENKUL DEĞERLER A.Ş. | C137: Finansal Kurum | D137: Borçlanma Aracı | E137: 2020-08-20 | F137: Tahsisli/Nitelikli | G137: 1,077,000,000 | H137: =Table5402945[[#This Row],[Yurtiçi İhraç Limiti Nominal Tutar (TL)]]/Table5402945[[#This Row],[Kurul karar tarihindeki TCMB Döviz Satış Kuru]] -> 147,366,693 | I137: 112,995,000 | J137: =Table5402945[[#This Row],[Yurtiçi İhraç Limiti Nominal Tutar (TL)]]-Table5402945[[#This Row],[Yurtiçi Satışı Gerçekleşen Nominal Tutar (TL)]] -> 964,005,000 | P137: 7.3083
A138: 134 | B138: AK YATIRIM MENKUL DEĞERLER A.Ş. | C138: Finansal Kurum | D138: Borçlanma Aracı | E138: 2020-08-27 | F138: Nitelikli | G138: 1,400,000,000 | H138: =Table5402945[[#This Row],[Yurtiçi İhraç Limiti Nominal Tutar (TL)]]/Table5402945[[#This Row],[Kurul karar tarihindeki TCMB Döviz Satış Kuru]] -> 190,980,274 | I138: 491,075,000 | J138: =Table5402945[[#This Row],[Yurtiçi İhraç Limiti Nominal Tutar (TL)]]-Table5402945[[#This Row],[Yurtiçi Satışı Gerçekleşen Nominal Tutar (TL)]] -> 908,925,000 | P138: 7.3306
A139: 135 | B139: BEREKET VARLIK KİRALAMA A.Ş. | C139: Finansal Kurum | D139: Kira Sertifikası | E139: 2020-08-27 | F139: Halka Arz/Tahsisli/Nitelikli | G139: 15,000,000,000 | H139: =Table5402945[[#This Row],[Yurtiçi İhraç Limiti Nominal Tutar (TL)]]/Table5402945[[#This Row],[Kurul karar tarihindeki TCMB Döviz Satış Kuru]] -> 2,046,217,226 | I139: 5,432,000,000 | J139: =Table5402945[[#This Row],[Yurtiçi İhraç Limiti Nominal Tutar (TL)]]-Table5402945[[#This Row],[Yurtiçi Satışı Gerçekleşen Nominal Tutar (TL)]] -> 9,568,000,000 | P139: 7.3306
A140: 136 | B140: ÇALIK ENERJİ SANAYİ VE TİCARET A.Ş. | C140: Reel Sektör | D140: Borçlanma Aracı | E140: 2020-08-27 | F140: Nitelikli | G140: 750,000,000 | H140: =Table5402945[[#This Row],[Yurtiçi İhraç Limiti Nominal Tutar (TL)]]/Table5402945[[#This Row],[Kurul karar tarihindeki TCMB Döviz Satış Kuru]] -> 102,310,861 | I140: 0 | J140: =Table5402945[[#This Row],[Yurtiçi İhraç Limiti Nominal Tutar (TL)]]-Table5402945[[#This Row],[Yurtiçi Satışı Gerçekleşen Nominal Tutar (TL)]] -> 750,000,000 | P140: 7.3306
A141: 137 | B141: DENİZBANK A.Ş. | C141: Banka | D141: Borçlanma Aracı | E141: 2020-08-27 | F141: Halka Arz/Tahsisli/Nitelikli | G141: 25,000,000,000 | H141: =Table5402945[[#This Row],[Yurtiçi İhraç Limiti Nominal Tutar (TL)]]/Table5402945[[#This Row],[Kurul karar tarihindeki TCMB Döviz Satış Kuru]] -> 3,410,362,044 | I141: 924,600,000 | J141: =Table5402945[[#This Row],[Yurtiçi İhraç Limiti Nominal Tutar (TL)]]-Table5402945[[#This Row],[Yurtiçi Satışı Gerçekleşen Nominal Tutar (TL)]] -> 24,075,400,000 | P141: 7.3306
A142: 138 | B142: HALK VARLIK KİRALAMA A.Ş. | C142: Finansal Kurum | D142: Kira Sertifikası | E142: 2020-08-27 | F142: Nitelikli | G142: 200,000,000 | H142: =Table5402945[[#This Row],[Yurtiçi İhraç Limiti Nominal Tutar (TL)]]/Table5402945[[#This Row],[Kurul karar tarihindeki TCMB Döviz Satış Kuru]] -> 27,282,896 | I142: 90,000,000 | J142: =Table5402945[[#This Row],[Yurtiçi İhraç Limiti Nominal Tutar (TL)]]-Table5402945[[#This Row],[Yurtiçi Satışı Gerçekleşen Nominal Tutar (TL)]] -> 110,000,000 | P142: 7.3306
A143: 139 | B143: EMLAK VARLIK KİRALAMA A.Ş. | C143: Finansal Kurum | D143: Kira Sertifikası | E143: 2020-08-27 | F143: Tahsisli/Nitelikli | G143: 50,000,000 | H143: =Table5402945[[#This Row],[Yurtiçi İhraç Limiti Nominal Tutar (TL)]]/Table5402945[[#This Row],[Kurul karar tarihindeki TCMB Döviz Satış Kuru]] -> 6,820,724 | I143: 0 | J143: =Table5402945[[#This Row],[Yurtiçi İhraç Limiti Nominal Tutar (TL)]]-Table5402945[[#This Row],[Yurtiçi Satışı Gerçekleşen Nominal Tutar (TL)]] -> 50,000,000 | P143: 7.3306
A144: 140 | B144: TF VARLIK KİRALAMA A.Ş. | C144: Finansal Kurum | D144: Kira Sertifikası | E144: 2020-08-27 | F144: Halka Arz/Tahsisli/Nitelikli | G144: 5,000,000,000 | H144: =Table5402945[[#This Row],[Yurtiçi İhraç Limiti Nominal Tutar (TL)]]/Table5402945[[#This Row],[Kurul karar tarihindeki TCMB Döviz Satış Kuru]] -> 682,072,409 | I144: 4,350,000,000 | J144: =Table5402945[[#This Row],[Yurtiçi İhraç Limiti Nominal Tutar (TL)]]-Table5402945[[#This Row],[Yurtiçi Satışı Gerçekleşen Nominal Tutar (TL)]] -> 650,000,000 | P144: 7.3306
A145: 141 | B145: DÜNYA VARLIK YÖNETİM A.Ş. | C145: Finansal Kurum | D145: Borçlanma Aracı | E145: 2020-09-02 | F145: Nitelikli | G145: 500,000,000 | H145: =Table5402945[[#This Row],[Yurtiçi İhraç Limiti Nominal Tutar (TL)]]/Table5402945[[#This Row],[Kurul karar tarihindeki TCMB Döviz Satış Kuru]] -> 67,846,287 | I145: 81,500,000 | J145: =Table5402945[[#This Row],[Yurtiçi İhraç Limiti Nominal Tutar (TL)]]-Table5402945[[#This Row],[Yurtiçi Satışı Gerçekleşen Nominal Tutar (TL)]] -> 418,500,000 | P145: 7.3696
A146: 142 | B146: FİBA FAKTORİNG A.Ş. | C146: Finansal Kurum | D146: Borçlanma Aracı | E146: 2020-09-02 | F146: Tahsisli/Nitelikli | G146: 240,000,000 | H146: =Table5402945[[#This Row],[Yurtiçi İhraç Limiti Nominal Tutar (TL)]]/Table5402945[[#This Row],[Kurul karar tarihindeki TCMB Döviz Satış Kuru]] -> 32,566,218 | I146: 0 | J146: =Table5402945[[#This Row],[Yurtiçi İhraç Limiti Nominal Tutar (TL)]]-Table5402945[[#This Row],[Yurtiçi Satışı Gerçekleşen Nominal Tutar (TL)]] -> 240,000,000 | P146: 7.3696
A147: 143 | B147: ŞEKER FAKTORİNG A.Ş. | C147: Finansal Kurum | D147: Borçlanma Aracı | E147: 2020-09-02 | F147: Nitelikli | G147: 78,000,000 | H147: =Table5402945[[#This Row],[Yurtiçi İhraç Limiti Nominal Tutar (TL)]]/Table5402945[[#This Row],[Kurul karar tarihindeki TCMB Döviz Satış Kuru]] -> 10,584,021 | I147: 78,000,000 | J147: =Table5402945[[#This Row],[Yurtiçi İhraç Limiti Nominal Tutar (TL)]]-Table5402945[[#This Row],[Yurtiçi Satışı Gerçekleşen Nominal Tutar (TL)]] -> 0 | P147: 7.3696
A148: 144 | B148: YATIRIM VARLIK KİRALAMA A.Ş. | C148: Finansal Kurum | D148: Kira Sertifikası | E148: 2020-09-02 | F148: Nitelikli | G148: 200,000,000 | H148: =Table5402945[[#This Row],[Yurtiçi İhraç Limiti Nominal Tutar (TL)]]/Table5402945[[#This Row],[Kurul karar tarihindeki TCMB Döviz Satış Kuru]] -> 27,138,515 | I148: 75,000,000 | J148: =Table5402945[[#This Row],[Yurtiçi İhraç Limiti Nominal Tutar (TL)]]-Table5402945[[#This Row],[Yurtiçi Satışı Gerçekleşen Nominal Tutar (TL)]] -> 125,000,000 | P148: 7.3696
A149: 145 | B149: ZORLU FAKTORİNG A.Ş. | C149: Finansal Kurum | D149: Borçlanma Aracı | E149: 2020-09-02 | F149: Nitelikli | G149: 200,000,000 | H149: =Table5402945[[#This Row],[Yurtiçi İhraç Limiti Nominal Tutar (TL)]]/Table5402945[[#This Row],[Kurul karar tarihindeki TCMB Döviz Satış Kuru]] -> 27,138,515 | I149: 56,990,000 | J149: =Table5402945[[#This Row],[Yurtiçi İhraç Limiti Nominal Tutar (TL)]]-Table5402945[[#This Row],[Yurtiçi Satışı Gerçekleşen Nominal Tutar (TL)]] -> 143,010,000 | P149: 7.3696
A150: 146 | B150: İNFO YATIRIM MENKUL DEĞERLER A.Ş. | C150: Finansal Kurum | D150: Borçlanma Aracı | E150: 2020-09-10 | F150: Nitelikli | G150: 100,000,000 | H150: =Table5402945[[#This Row],[Yurtiçi İhraç Limiti Nominal Tutar (TL)]]/Table5402945[[#This Row],[Kurul karar tarihindeki TCMB Döviz Satış Kuru]] -> 13,389,032 | I150: 100,000,000 | J150: =Table5402945[[#This Row],[Yurtiçi İhraç Limiti Nominal Tutar (TL)]]-Table5402945[[#This Row],[Yurtiçi Satışı Gerçekleşen Nominal Tutar (TL)]] -> 0 | P150: 7.4688
A151: 147 | B151: NUROL YATIRIM BANKASI A.Ş. | C151: Banka | D151: Borçlanma Aracı | E151: 2020-09-10 | F151: Nitelikli | G151: 600,000,000 | H151: =Table5402945[[#This Row],[Yurtiçi İhraç Limiti Nominal Tutar (TL)]]/Table5402945[[#This Row],[Kurul karar tarihindeki TCMB Döviz Satış Kuru]] -> 80,334,190 | I151: 570,000,000 | J151: =Table5402945[[#This Row],[Yurtiçi İhraç Limiti Nominal Tutar (TL)]]-Table5402945[[#This Row],[Yurtiçi Satışı Gerçekleşen Nominal Tutar (TL)]] -> 30,000,000 | P151: 7.4688
A152: 148 | B152: ŞEKER FİNANSAL KİRALAMA A.Ş. | C152: Finansal Kurum | D152: Borçlanma Aracı | E152: 2020-09-10 | F152: Halka Arz/Tahsisli/Nitelikli | G152: 125,000,000 | H152: =Table5402945[[#This Row],[Yurtiçi İhraç Limiti Nominal Tutar (TL)]]/Table5402945[[#This Row],[Kurul karar tarihindeki TCMB Döviz Satış Kuru]] -> 16,736,290 | I152: 125,000,000 | J152: =Table5402945[[#This Row],[Yurtiçi İhraç Limiti Nominal Tutar (TL)]]-Table5402945[[#This Row],[Yurtiçi Satışı Gerçekleşen Nominal Tutar (TL)]] -> 0 | P152: 7.4688
A153: 149 | B153: EMLAK KATILIM VARLIK KİRALAMA A.Ş. | C153: Finansal Kurum | D153: Kira Sertifikası | E153: 2020-09-17 | F153: Tahsisli/Nitelikli | G153: 5,000,000,000 | H153: =Table5402945[[#This Row],[Yurtiçi İhraç Limiti Nominal Tutar (TL)]]/Table5402945[[#This Row],[Kurul karar tarihindeki TCMB Döviz Satış Kuru]] -> 664,125,281 | I153: 2,812,803,000 | J153: =Table5402945[[#This Row],[Yurtiçi İhraç Limiti Nominal Tutar (TL)]]-Table5402945[[#This Row],[Yurtiçi Satışı Gerçekleşen Nominal Tutar (TL)]] -> 2,187,197,000 | P153: 7.5287
A154: 150 | B154: LİDER FAKTORİNG A.Ş. | C154: Finansal Kurum | D154: Borçlanma Aracı | E154: 2020-09-17 | F154: Tahsisli/Nitelikli | G154: 140,000,000 | H154: =Table5402945[[#This Row],[Yurtiçi İhraç Limiti Nominal Tutar (TL)]]/Table5402945[[#This Row],[Kurul karar tarihindeki TCMB Döviz Satış Kuru]] -> 18,595,508 | I154: 0 | J154: =Table5402945[[#This Row],[Yurtiçi İhraç Limiti Nominal Tutar (TL)]]-Table5402945[[#This Row],[Yurtiçi Satışı Gerçekleşen Nominal Tutar (TL)]] -> 140,000,000 | P154: 7.5287
A155: 151 | B155: OYAK YATIRIM MENKUL DEĞERLER A.Ş. | C155: Finansal Kurum | D155: Borçlanma Aracı | E155: 2020-09-17 | F155: Tahsisli/Nitelikli | G155: 510,000,000 | H155: =Table5402945[[#This Row],[Yurtiçi İhraç Limiti Nominal Tutar (TL)]]/Table5402945[[#This Row],[Kurul karar tarihindeki TCMB Döviz Satış Kuru]] -> 67,740,779 | I155: 202,000,000 | J155: =Table5402945[[#This Row],[Yurtiçi İhraç Limiti Nominal Tutar (TL)]]-Table5402945[[#This Row],[Yurtiçi Satışı Gerçekleşen Nominal Tutar (TL)]] -> 308,000,000 | P155: 7.5287
A156: 152 | B156: TÜRKİYE SINAİ KALKINMA BANKASI A.Ş. | C156: Banka | D156: Borçlanma Aracı | E156: 2020-09-17 | F156: Yurtdışı | K156: 750,000,000 | L156: Amerikan Doları | M156: 0 | N156: =K156-M156 -> 750,000,000 | O156: 0 | P156: 7.5287
A157: 153 | B157: AKTİF YATIRIM BANKASI A.Ş. | C157: Banka | D157: Borçlanma Aracı | E157: 2020-09-24 | F157: Halka Arz/Nitelikli | G157: 3,000,000,000 | H157: =Table5402945[[#This Row],[Yurtiçi İhraç Limiti Nominal Tutar (TL)]]/Table5402945[[#This Row],[Kurul karar tarihindeki TCMB Döviz Satış Kuru]] -> 390,787,828 | I157: 3,000,000,000 | J157: =Table5402945[[#This Row],[Yurtiçi İhraç Limiti Nominal Tutar (TL)]]-Table5402945[[#This Row],[Yurtiçi Satışı Gerçekleşen Nominal Tutar (TL)]] -> 0 | P157: 7.6768
A158: 154 | B158: HSBC BANK A.Ş. | C158: Banka | D158: Borçlanma Aracı | E158: 2020-09-24 | F158: Tahsisli/Nitelikli | G158: 3,000,000,000 | H158: =Table5402945[[#This Row],[Yurtiçi İhraç Limiti Nominal Tutar (TL)]]/Table5402945[[#This Row],[Kurul karar tarihindeki TCMB Döviz Satış Kuru]] -> 390,787,828 | I158: 1,000,000,000 | J158: =Table5402945[[#This Row],[Yurtiçi İhraç Limiti Nominal Tutar (TL)]]-Table5402945[[#This Row],[Yurtiçi Satışı Gerçekleşen Nominal Tutar (TL)]] -> 2,000,000,000 | P158: 7.6768
A159: 155 | B159: İŞ FAKTORİNG A.Ş. | C159: Finansal Kurum | D159: Borçlanma Aracı | E159: 2020-09-24 | F159: Tahsisli/Nitelikli | G159: 672,000,000 | H159: =Table5402945[[#This Row],[Yurtiçi İhraç Limiti Nominal Tutar (TL)]]/Table5402945[[#This Row],[Kurul karar tarihindeki TCMB Döviz Satış Kuru]] -> 87,536,474 | I159: 648,340,000 | J159: =Table5402945[[#This Row],[Yurtiçi İhraç Limiti Nominal Tutar (TL)]]-Table5402945[[#This Row],[Yurtiçi Satışı Gerçekleşen Nominal Tutar (TL)]] -> 23,660,000 | P159: 7.6768
A160: 156 | B160: ANADOLUBANK A.Ş. | C160: Banka | D160: Borçlanma Aracı | E160: 2020-09-30 | F160: Tahsisli/Nitelikli | G160: 1,800,000,000 | H160: =Table5402945[[#This Row],[Yurtiçi İhraç Limiti Nominal Tutar (TL)]]/Table5402945[[#This Row],[Kurul karar tarihindeki TCMB Döviz Satış Kuru]] -> 231,773,583 | I160: 0 | J160: =Table5402945[[#This Row],[Yurtiçi İhraç Limiti Nominal Tutar (TL)]]-Table5402945[[#This Row],[Yurtiçi Satışı Gerçekleşen Nominal Tutar (TL)]] -> 1,800,000,000 | P160: 7.7662
A161: 157 | B161: QNB FİNANS YATIRIM MENKUL DEĞERLER A.Ş. | C161: Finansal Kurum | D161: Borçlanma Aracı | E161: 2020-09-30 | F161: Nitelikli | G161: 1,000,000,000 | H161: =Table5402945[[#This Row],[Yurtiçi İhraç Limiti Nominal Tutar (TL)]]/Table5402945[[#This Row],[Kurul karar tarihindeki TCMB Döviz Satış Kuru]] -> 128,763,102 | I161: 0 | J161: =Table5402945[[#This Row],[Yurtiçi İhraç Limiti Nominal Tutar (TL)]]-Table5402945[[#This Row],[Yurtiçi Satışı Gerçekleşen Nominal Tutar (TL)]] -> 1,000,000,000 | P161: 7.7662
A162: 158 | B162: A1 CAPİTAL YATIRIM MENKUL DEĞERLER A.Ş. | C162: Finansal Kurum | D162: Borçlanma Aracı | E162: 2020-10-15 | F162: Nitelikli | G162: 50,000,000 | H162: =Table5402945[[#This Row],[Yurtiçi İhraç Limiti Nominal Tutar (TL)]]/Table5402945[[#This Row],[Kurul karar tarihindeki TCMB Döviz Satış Kuru]] -> 6,308,432 | I162: 50,000,000 | J162: =Table5402945[[#This Row],[Yurtiçi İhraç Limiti Nominal Tutar (TL)]]-Table5402945[[#This Row],[Yurtiçi Satışı Gerçekleşen Nominal Tutar (TL)]] -> 0 | P162: 7.9259
A163: 159 | B163: BİRİKİM VARLIK YÖNETİM A.Ş. | C163: Finansal Kurum | D163: Borçlanma Aracı | E163: 2020-10-15 | F163: Nitelikli | G163: 122,000,000 | H163: =Table5402945[[#This Row],[Yurtiçi İhraç Limiti Nominal Tutar (TL)]]/Table5402945[[#This Row],[Kurul karar tarihindeki TCMB Döviz Satış Kuru]] -> 15,392,574 | I163: 15,000,000 | J163: =Table5402945[[#This Row],[Yurtiçi İhraç Limiti Nominal Tutar (TL)]]-Table5402945[[#This Row],[Yurtiçi Satışı Gerçekleşen Nominal Tutar (TL)]] -> 107,000,000 | P163: 7.9259
A164: 160 | B164: DENİZ YATIRIM MENKUL KIYMETLER A.Ş. | C164: Finansal Kurum | D164: Borçlanma Aracı | E164: 2020-10-15 | F164: Nitelikli | G164: 960,000,000 | H164: =Table5402945[[#This Row],[Yurtiçi İhraç Limiti Nominal Tutar (TL)]]/Table5402945[[#This Row],[Kurul karar tarihindeki TCMB Döviz Satış Kuru]] -> 121,121,892 | I164: 0 | J164: =Table5402945[[#This Row],[Yurtiçi İhraç Limiti Nominal Tutar (TL)]]-Table5402945[[#This Row],[Yurtiçi Satışı Gerçekleşen Nominal Tutar (TL)]] -> 960,000,000 | P164: 7.9259
A165: 161 | B165: HALK FİNANSAL KİRALAMA A.Ş. | C165: Finansal Kurum | D165: Borçlanma Aracı | E165: 2020-10-15 | F165: Nitelikli | G165: 746,000,000 | H165: =Table5402945[[#This Row],[Yurtiçi İhraç Limiti Nominal Tutar (TL)]]/Table5402945[[#This Row],[Kurul karar tarihindeki TCMB Döviz Satış Kuru]] -> 94,121,803 | I165: 0 | J165: =Table5402945[[#This Row],[Yurtiçi İhraç Limiti Nominal Tutar (TL)]]-Table5402945[[#This Row],[Yurtiçi Satışı Gerçekleşen Nominal Tutar (TL)]] -> 746,000,000 | P165: 7.9259
A166: 162 | B166: ŞEKER FAKTORİNG A.Ş. | C166: Finansal Kurum | D166: Borçlanma Aracı | E166: 2020-10-15 | F166: Nitelikli | G166: 79,000,000 | H166: =Table5402945[[#This Row],[Yurtiçi İhraç Limiti Nominal Tutar (TL)]]/Table5402945[[#This Row],[Kurul karar tarihindeki TCMB Döviz Satış Kuru]] -> 9,967,322 | I166: 79,000,000 | J166: =Table5402945[[#This Row],[Yurtiçi İhraç Limiti Nominal Tutar (TL)]]-Table5402945[[#This Row],[Yurtiçi Satışı Gerçekleşen Nominal Tutar (TL)]] -> 0 | P166: 7.9259
A167: 163 | B167: TACİRLER YATIRIM MENKUL DEĞERLER A.Ş. | C167: Finansal Kurum | D167: Borçlanma Aracı | E167: 2020-10-15 | F167: Nitelikli | G167: 450,000,000 | H167: =Table5402945[[#This Row],[Yurtiçi İhraç Limiti Nominal Tutar (TL)]]/Table5402945[[#This Row],[Kurul karar tarihindeki TCMB Döviz Satış Kuru]] -> 56,775,887 | I167: 87,000,000 | J167: =Table5402945[[#This Row],[Yurtiçi İhraç Limiti Nominal Tutar (TL)]]-Table5402945[[#This Row],[Yurtiçi Satışı Gerçekleşen Nominal Tutar (TL)]] -> 363,000,000 | P167: 7.9259
A168: 164 | B168: ÜLKER BİSKÜVİ SANAYİ A.Ş. | C168: Reel Sektör | D168: Borçlanma Aracı | E168: 2020-10-15 | F168: Yurtdışı | K168: 750,000,000 | L168: Amerikan Doları | M168: 650,000,000 | N168: =K168-M168 -> 100,000,000 | O168: =Table5402945[[#This Row],[YURTDIŞI Satışı Gerçekleşen Nominal Tutar]]*7.4327 -> 4,831,255,000 | P168: 7.9259
A169: 165 | B169: VAKIF FAKTORİNG A.Ş. | C169: Finansal Kurum | D169: Borçlanma Aracı | E169: 2020-10-15 | F169: Nitelikli | G169: 1,100,000,000 | H169: =Table5402945[[#This Row],[Yurtiçi İhraç Limiti Nominal Tutar (TL)]]/Table5402945[[#This Row],[Kurul karar tarihindeki TCMB Döviz Satış Kuru]] -> 138,785,501 | I169: 777,300,000 | J169: =Table5402945[[#This Row],[Yurtiçi İhraç Limiti Nominal Tutar (TL)]]-Table5402945[[#This Row],[Yurtiçi Satışı Gerçekleşen Nominal Tutar (TL)]] -> 322,700,000 | P169: 7.9259
A170: 166 | B170: ZORLU ENERJİ ELEKTRİK ÜRETİM A.Ş. | C170: Reel Sektör | D170: Borçlanma Aracı | E170: 2020-10-15 | F170: Nitelikli | G170: 950,000,000 | H170: =Table5402945[[#This Row],[Yurtiçi İhraç Limiti Nominal Tutar (TL)]]/Table5402945[[#This Row],[Kurul karar tarihindeki TCMB Döviz Satış Kuru]] -> 119,860,205 | I170: 72,830,000 | J170: =Table5402945[[#This Row],[Yurtiçi İhraç Limiti Nominal Tutar (TL)]]-Table5402945[[#This Row],[Yurtiçi Satışı Gerçekleşen Nominal Tutar (TL)]] -> 877,170,000 | P170: 7.9259
A171: 167 | B171: İSTANBUL BÜYÜKŞEHİR BELEDİYESİ | C171: Diğer | D171: Borçlanma Aracı | E171: 2020-10-22 | F171: Yurtdışı | K171: 554,000,000 | L171: Euro | M171: =Table5402945[[#This Row],[YURTDIŞI Satışı Gerçekleşen Nominal Tutar (TL)**]]/9.1329 -> 467,008,946 | N171: =K171-M171 -> 86,991,054 | O171: 4,265,146,000 | P171: 7.8166
A172: 168 | B172: QNB FİNANS FAKTORİNG A.Ş. | C172: Finansal Kurum | D172: Borçlanma Aracı | E172: 2020-10-22 | F172: Tahsisli/Nitelikli | G172: 604,500,000 | H172: =Table5402945[[#This Row],[Yurtiçi İhraç Limiti Nominal Tutar (TL)]]/Table5402945[[#This Row],[Kurul karar tarihindeki TCMB Döviz Satış Kuru]] -> 77,335,414 | I172: 326,110,000 | J172: =Table5402945[[#This Row],[Yurtiçi İhraç Limiti Nominal Tutar (TL)]]-Table5402945[[#This Row],[Yurtiçi Satışı Gerçekleşen Nominal Tutar (TL)]] -> 278,390,000 | P172: 7.8166
A173: 169 | B173: ŞEKERBANK T.A.Ş. | C173: Banka | D173: Borçlanma Aracı | E173: 2020-10-22 | F173: Tahsisli/Nitelikli | G173: 1,500,000,000 | H173: =Table5402945[[#This Row],[Yurtiçi İhraç Limiti Nominal Tutar (TL)]]/Table5402945[[#This Row],[Kurul karar tarihindeki TCMB Döviz Satış Kuru]] -> 191,899,291 | I173: 0 | J173: =Table5402945[[#This Row],[Yurtiçi İhraç Limiti Nominal Tutar (TL)]]-Table5402945[[#This Row],[Yurtiçi Satışı Gerçekleşen Nominal Tutar (TL)]] -> 1,500,000,000 | P173: 7.8166
A174: 170 | B174: TÜRKİYE İŞ BANKASI A.Ş. | C174: Banka | D174: Borçlanma Aracı | E174: 2020-10-22 | F174: Nitelikli | G174: 5,000,000,000 | H174: =Table5402945[[#This Row],[Yurtiçi İhraç Limiti Nominal Tutar (TL)]]/Table5402945[[#This Row],[Kurul karar tarihindeki TCMB Döviz Satış Kuru]] -> 639,664,304 | I174: 0 | J174: =Table5402945[[#This Row],[Yurtiçi İhraç Limiti Nominal Tutar (TL)]]-Table5402945[[#This Row],[Yurtiçi Satışı Gerçekleşen Nominal Tutar (TL)]] -> 5,000,000,000 | P174: 7.8166
A175: 171 | B175: ÜNLÜ MENKUL DEĞERLER A.Ş. | C175: Finansal Kurum | D175: Borçlanma Aracı | E175: 2020-10-22 | F175: Nitelikli | G175: 150,000,000 | H175: =Table5402945[[#This Row],[Yurtiçi İhraç Limiti Nominal Tutar (TL)]]/Table5402945[[#This Row],[Kurul karar tarihindeki TCMB Döviz Satış Kuru]] -> 19,189,929 | I175: 999,999 | J175: =Table5402945[[#This Row],[Yurtiçi İhraç Limiti Nominal Tutar (TL)]]-Table5402945[[#This Row],[Yurtiçi Satışı Gerçekleşen Nominal Tutar (TL)]] -> 149,000,001 | P175: 7.8166
A176: 172 | B176: HALK VARLIK KİRALAMA A.Ş. | C176: Finansal Kurum | D176: Kira Sertifikası | E176: 2020-10-28 | F176: Nitelikli | G176: 2,000,000,000 | H176: =Table5402945[[#This Row],[Yurtiçi İhraç Limiti Nominal Tutar (TL)]]/Table5402945[[#This Row],[Kurul karar tarihindeki TCMB Döviz Satış Kuru]] -> 245,830,107 | I176: 46,000,000 | J176: =Table5402945[[#This Row],[Yurtiçi İhraç Limiti Nominal Tutar (TL)]]-Table5402945[[#This Row],[Yurtiçi Satışı Gerçekleşen Nominal Tutar (TL)]] -> 1,954,000,000 | P176: 8.1357
A177: 173 | B177: MOGAN ENERJİ YATIRIM HOLDİNG A.Ş. | C177: Reel Sektör | D177: Borçlanma Aracı | E177: 2020-10-28 | F177: Nitelikli | G177: 235,000,000 | H177: =Table5402945[[#This Row],[Yurtiçi İhraç Limiti Nominal Tutar (TL)]]/Table5402945[[#This Row],[Kurul karar tarihindeki TCMB Döviz Satış Kuru]] -> 28,885,038 | I177: 0 | J177: =Table5402945[[#This Row],[Yurtiçi İhraç Limiti Nominal Tutar (TL)]]-Table5402945[[#This Row],[Yurtiçi Satışı Gerçekleşen Nominal Tutar (TL)]] -> 235,000,000 | P177: 8.1357
A178: 174 | B178: PASHA YATIRIM BANKASI A.Ş. | C178: Banka | D178: VDMK | E178: 2020-10-28 | F178: Nitelikli | G178: 45,000,000 | H178: =Table5402945[[#This Row],[Yurtiçi İhraç Limiti Nominal Tutar (TL)]]/Table5402945[[#This Row],[Kurul karar tarihindeki TCMB Döviz Satış Kuru]] -> 5,531,177 | I178: 0 | J178: =Table5402945[[#This Row],[Yurtiçi İhraç Limiti Nominal Tutar (TL)]]-Table5402945[[#This Row],[Yurtiçi Satışı Gerçekleşen Nominal Tutar (TL)]] -> 45,000,000 | P178: 8.1357
A179: 175 | B179: TÜRKİYE İHRACAT KREDİ BANKASI A.Ş.(TÜRK EXIMBANK) | C179: Banka | D179: Borçlanma Aracı | E179: 2020-10-28 | F179: Tahsisli/Nitelikli | G179: 5,000,000,000 | H179: =Table5402945[[#This Row],[Yurtiçi İhraç Limiti Nominal Tutar (TL)]]/Table5402945[[#This Row],[Kurul karar tarihindeki TCMB Döviz Satış Kuru]] -> 614,575,267 | I179: 0 | J179: =Table5402945[[#This Row],[Yurtiçi İhraç Limiti Nominal Tutar (TL)]]-Table5402945[[#This Row],[Yurtiçi Satışı Gerçekleşen Nominal Tutar (TL)]] -> 5,000,000,000 | P179: 8.1357
A180: 176 | B180: ULUSAL FAKTORİNG A.Ş. | C180: Finansal Kurum | D180: Borçlanma Aracı | E180: 2020-11-05 | F180: Nitelikli | G180: 200,000,000 | H180: =Table5402945[[#This Row],[Yurtiçi İhraç Limiti Nominal Tutar (TL)]]/Table5402945[[#This Row],[Kurul karar tarihindeki TCMB Döviz Satış Kuru]] -> 23,649,328 | I180: 0 | J180: =Table5402945[[#This Row],[Yurtiçi İhraç Limiti Nominal Tutar (TL)]]-Table5402945[[#This Row],[Yurtiçi Satışı Gerçekleşen Nominal Tutar (TL)]] -> 200,000,000 | P180: 8.4569
A181: 177 | B181: ORFİN FİNANSMAN A.Ş. | C181: Finansal Kurum | D181: Borçlanma Aracı | E181: 2020-11-05 | F181: Tahsisli/Nitelikli | G181: 400,000,000 | H181: =Table5402945[[#This Row],[Yurtiçi İhraç Limiti Nominal Tutar (TL)]]/Table5402945[[#This Row],[Kurul karar tarihindeki TCMB Döviz Satış Kuru]] -> 47,298,656 | I181: 130,000,000 | J181: =Table5402945[[#This Row],[Yurtiçi İhraç Limiti Nominal Tutar (TL)]]-Table5402945[[#This Row],[Yurtiçi Satışı Gerçekleşen Nominal Tutar (TL)]] -> 270,000,000 | P181: 8.4569
A182: 178 | B182: PHİLLİPCAPİTAL MENKUL DEĞERLER A.Ş. | C182: Finansal Kurum | D182: Borçlanma Aracı | E182: 2020-11-05 | F182: Tahsisli/Nitelikli | G182: 287,720,000 | H182: =Table5402945[[#This Row],[Yurtiçi İhraç Limiti Nominal Tutar (TL)]]/Table5402945[[#This Row],[Kurul karar tarihindeki TCMB Döviz Satış Kuru]] -> 34,021,923 | I182: 136,230,000 | J182: =Table5402945[[#This Row],[Yurtiçi İhraç Limiti Nominal Tutar (TL)]]-Table5402945[[#This Row],[Yurtiçi Satışı Gerçekleşen Nominal Tutar (TL)]] -> 151,490,000 | P182: 8.4569
A183: 179 | B183: DENGE VARLIK YÖNETİM A.Ş. | C183: Finansal Kurum | D183: Borçlanma Aracı | E183: 2020-11-12 | F183: Tahsisli/Nitelikli | G183: 46,000,000 | H183: =Table5402945[[#This Row],[Yurtiçi İhraç Limiti Nominal Tutar (TL)]]/Table5402945[[#This Row],[Kurul karar tarihindeki TCMB Döviz Satış Kuru]] -> 5,894,640 | I183: 0 | J183: =Table5402945[[#This Row],[Yurtiçi İhraç Limiti Nominal Tutar (TL)]]-Table5402945[[#This Row],[Yurtiçi Satışı Gerçekleşen Nominal Tutar (TL)]] -> 46,000,000 | P183: 7.8037
A184: 180 | B184: ALTERNATİFBANK A.Ş | C184: Banka | D184: Borçlanma Aracı | E184: 2020-11-12 | F184: Tahsisli/Nitelikli | G184: 2,200,000,000 | H184: =Table5402945[[#This Row],[Yurtiçi İhraç Limiti Nominal Tutar (TL)]]/Table5402945[[#This Row],[Kurul karar tarihindeki TCMB Döviz Satış Kuru]] -> 281,917,552 | I184: 0 | J184: =Table5402945[[#This Row],[Yurtiçi İhraç Limiti Nominal Tutar (TL)]]-Table5402945[[#This Row],[Yurtiçi Satışı Gerçekleşen Nominal Tutar (TL)]] -> 2,200,000,000 | P184: 7.8037
A185: 181 | B185: BOĞAZİÇİ VARLIK YÖNETİM A.Ş. | C185: Finansal Kurum | D185: Borçlanma Aracı | E185: 2020-11-12 | F185: Nitelikli | G185: 80,000,000 | H185: =Table5402945[[#This Row],[Yurtiçi İhraç Limiti Nominal Tutar (TL)]]/Table5402945[[#This Row],[Kurul karar tarihindeki TCMB Döviz Satış Kuru]] -> 10,251,547 | I185: 10,000,000 | J185: =Table5402945[[#This Row],[Yurtiçi İhraç Limiti Nominal Tutar (TL)]]-Table5402945[[#This Row],[Yurtiçi Satışı Gerçekleşen Nominal Tutar (TL)]] -> 70,000,000 | P185: 7.8037
A186: 182 | B186: ÇALIK HOLDİNG A.Ş. | C186: Reel Sektör | D186: Borçlanma Aracı | E186: 2020-11-12 | F186: Yurtdışı | K186: 100,000,000 | L186: Amerikan Doları | M186: 85,000,000 | N186: =K186-M186 -> 15,000,000 | O186: =Table5402945[[#This Row],[YURTDIŞI Satışı Gerçekleşen Nominal Tutar]]*7.4327 -> 631,779,500 | P186: 7.8037
A187: 183 | B187: EKO FAKTORİNG A.Ş. | C187: Finansal Kurum | D187: Borçlanma Aracı | E187: 2020-11-12 | F187: Nitelikli | G187: 70,000,000 | H187: =Table5402945[[#This Row],[Yurtiçi İhraç Limiti Nominal Tutar (TL)]]/Table5402945[[#This Row],[Kurul karar tarihindeki TCMB Döviz Satış Kuru]] -> 8,970,104 | I187: 29,500,000 | J187: =Table5402945[[#This Row],[Yurtiçi İhraç Limiti Nominal Tutar (TL)]]-Table5402945[[#This Row],[Yurtiçi Satışı Gerçekleşen Nominal Tutar (TL)]] -> 40,500,000 | P187: 7.8037
A188: 184 | B188: NOBEL İLAÇ SANAYİİ VE TİCARET A.Ş. | C188: Reel Sektör | D188: Borçlanma Aracı | E188: 2020-11-12 | F188: Nitelikli | G188: 250,000,000 | H188: =Table5402945[[#This Row],[Yurtiçi İhraç Limiti Nominal Tutar (TL)]]/Table5402945[[#This Row],[Kurul karar tarihindeki TCMB Döviz Satış Kuru]] -> 32,036,085 | I188: 0 | J188: =Table5402945[[#This Row],[Yurtiçi İhraç Limiti Nominal Tutar (TL)]]-Table5402945[[#This Row],[Yurtiçi Satışı Gerçekleşen Nominal Tutar (TL)]] -> 250,000,000 | P188: 7.8037
A189: 185 | B189: NUROL HOLDİNG A.Ş. | C189: Reel Sektör | D189: Borçlanma Aracı | E189: 2020-11-12 | F189: Tahsisli/Nitelikli | G189: 1,000,000,000 | H189: =Table5402945[[#This Row],[Yurtiçi İhraç Limiti Nominal Tutar (TL)]]/Table5402945[[#This Row],[Kurul karar tarihindeki TCMB Döviz Satış Kuru]] -> 128,144,342 | I189: 230,000,000 | J189: =Table5402945[[#This Row],[Yurtiçi İhraç Limiti Nominal Tutar (TL)]]-Table5402945[[#This Row],[Yurtiçi Satışı Gerçekleşen Nominal Tutar (TL)]] -> 770,000,000 | P189: 7.8037
A190: 186 | B190: NUROL VARLIK KİRALAMA A.Ş. | C190: Finansal Kurum | D190: Kira Sertifikası | E190: 2020-11-12 | F190: Tahsisli/Nitelikli | G190: 500,000,000 | H190: =Table5402945[[#This Row],[Yurtiçi İhraç Limiti Nominal Tutar (TL)]]/Table5402945[[#This Row],[Kurul karar tarihindeki TCMB Döviz Satış Kuru]] -> 64,072,171 | I190: 0 | J190: =Table5402945[[#This Row],[Yurtiçi İhraç Limiti Nominal Tutar (TL)]]-Table5402945[[#This Row],[Yurtiçi Satışı Gerçekleşen Nominal Tutar (TL)]] -> 500,000,000 | P190: 7.8037
A191: 187 | B191: TURKCELL FİNANSMAN A.Ş. | C191: Finansal Kurum | D191: Borçlanma Aracı | E191: 2020-11-12 | F191: Tahsisli/Nitelikli | G191: 500,000,000 | H191: =Table5402945[[#This Row],[Yurtiçi İhraç Limiti Nominal Tutar (TL)]]/Table5402945[[#This Row],[Kurul karar tarihindeki TCMB Döviz Satış Kuru]] -> 64,072,171 | I191: 0 | J191: =Table5402945[[#This Row],[Yurtiçi İhraç Limiti Nominal Tutar (TL)]]-Table5402945[[#This Row],[Yurtiçi Satışı Gerçekleşen Nominal Tutar (TL)]] -> 500,000,000 | P191: 7.8037
A192: 188 | B192: TÜPRAŞ TÜRKİYE PETROL RAFİNERİLERİ A.Ş. | C192: Reel Sektör | D192: Borçlanma Aracı | E192: 2020-11-12 | F192: Nitelikli | G192: 2,000,000,000 | H192: =Table5402945[[#This Row],[Yurtiçi İhraç Limiti Nominal Tutar (TL)]]/Table5402945[[#This Row],[Kurul karar tarihindeki TCMB Döviz Satış Kuru]] -> 256,288,684 | I192: 500,000,000 | J192: =Table5402945[[#This Row],[Yurtiçi İhraç Limiti Nominal Tutar (TL)]]-Table5402945[[#This Row],[Yurtiçi Satışı Gerçekleşen Nominal Tutar (TL)]] -> 1,500,000,000 | P192: 7.8037
A193: 189 | B193: TÜRKİYE İŞ BANKASI A.Ş. | C193: Banka | D193: Borçlanma Aracı | E193: 2020-11-12 | F193: Halka Arz/Tahsisli/Nitelikli | G193: 30,000,000,000 | H193: =Table5402945[[#This Row],[Yurtiçi İhraç Limiti Nominal Tutar (TL)]]/Table5402945[[#This Row],[Kurul karar tarihindeki TCMB Döviz Satış Kuru]] -> 3,844,330,254 | I193: 243,750,380 | J193: =Table5402945[[#This Row],[Yurtiçi İhraç Limiti Nominal Tutar (TL)]]-Table5402945[[#This Row],[Yurtiçi Satışı Gerçekleşen Nominal Tutar (TL)]] -> 29,756,249,620 | P193: 7.8037
A194: 190 | B194: TÜRKİYE İŞ BANKASI A.Ş. | C194: Banka | D194: Borçlanma Aracı | E194: 2020-11-12 | F194: Nitelikli | G194: 3,000,000,000 | H194: =Table5402945[[#This Row],[Yurtiçi İhraç Limiti Nominal Tutar (TL)]]/Table5402945[[#This Row],[Kurul karar tarihindeki TCMB Döviz Satış Kuru]] -> 384,433,025 | I194: 0 | J194: =Table5402945[[#This Row],[Yurtiçi İhraç Limiti Nominal Tutar (TL)]]-Table5402945[[#This Row],[Yurtiçi Satışı Gerçekleşen Nominal Tutar (TL)]] -> 3,000,000,000 | P194: 7.8037
A195: 191 | B195: YAPI VE KREDİ BANKASI A.Ş. | C195: Banka | D195: Borçlanma Aracı | E195: 2020-11-12 | F195: Halka Arz/Nitelikli | G195: 25,000,000,000 | H195: =Table5402945[[#This Row],[Yurtiçi İhraç Limiti Nominal Tutar (TL)]]/Table5402945[[#This Row],[Kurul karar tarihindeki TCMB Döviz Satış Kuru]] -> 3,203,608,545 | I195: 1,113,180,000 | J195: =Table5402945[[#This Row],[Yurtiçi İhraç Limiti Nominal Tutar (TL)]]-Table5402945[[#This Row],[Yurtiçi Satışı Gerçekleşen Nominal Tutar (TL)]] -> 23,886,820,000 | P195: 7.8037
A196: 192 | B196: YAPI VE KREDİ BANKASI A.Ş. | C196: Banka | D196: Borçlanma Aracı | E196: 2020-11-12 | F196: Nitelikli | G196: 5,000,000,000 | H196: =Table5402945[[#This Row],[Yurtiçi İhraç Limiti Nominal Tutar (TL)]]/Table5402945[[#This Row],[Kurul karar tarihindeki TCMB Döviz Satış Kuru]] -> 640,721,709 | I196: 0 | J196: =Table5402945[[#This Row],[Yurtiçi İhraç Limiti Nominal Tutar (TL)]]-Table5402945[[#This Row],[Yurtiçi Satışı Gerçekleşen Nominal Tutar (TL)]] -> 5,000,000,000 | P196: 7.8037
A197: 193 | B197: EMLAK VARLIK KİRALAMA A.Ş. | C197: Finansal Kurum | D197: Kira Sertifikası | E197: 2020-11-12 | F197: Tahsisli/Nitelikli | G197: 50,000,000 | H197: =Table5402945[[#This Row],[Yurtiçi İhraç Limiti Nominal Tutar (TL)]]/Table5402945[[#This Row],[Kurul karar tarihindeki TCMB Döviz Satış Kuru]] -> 6,407,217 | I197: 0 | J197: =Table5402945[[#This Row],[Yurtiçi İhraç Limiti Nominal Tutar (TL)]]-Table5402945[[#This Row],[Yurtiçi Satışı Gerçekleşen Nominal Tutar (TL)]] -> 50,000,000 | P197: 7.8037
A198: 194 | B198: GLOBAL MENKUL DEĞERLER A.Ş. | C198: Finansal Kurum | D198: Borçlanma Aracı | E198: 2020-11-19 | F198: Tahsisli/Nitelikli | G198: 100,000,000 | H198: =Table5402945[[#This Row],[Yurtiçi İhraç Limiti Nominal Tutar (TL)]]/Table5402945[[#This Row],[Kurul karar tarihindeki TCMB Döviz Satış Kuru]] -> 13,014,563 | I198: 47,109,000 | J198: =Table5402945[[#This Row],[Yurtiçi İhraç Limiti Nominal Tutar (TL)]]-Table5402945[[#This Row],[Yurtiçi Satışı Gerçekleşen Nominal Tutar (TL)]] -> 52,891,000 | P198: 7.6837
A199: 195 | B199: SÜMER VARLIK YÖNETİM A.Ş. | C199: Finansal Kurum | D199: Borçlanma Aracı | E199: 2020-11-19 | F199: Nitelikli | G199: 95,000,000 | H199: =Table5402945[[#This Row],[Yurtiçi İhraç Limiti Nominal Tutar (TL)]]/Table5402945[[#This Row],[Kurul karar tarihindeki TCMB Döviz Satış Kuru]] -> 12,363,835 | I199: 0 | J199: =Table5402945[[#This Row],[Yurtiçi İhraç Limiti Nominal Tutar (TL)]]-Table5402945[[#This Row],[Yurtiçi Satışı Gerçekleşen Nominal Tutar (TL)]] -> 95,000,000 | P199: 7.6837
A200: 196 | B200: ŞEKER FİNANSAL KİRALAMA A.Ş. | C200: Finansal Kurum | D200: Borçlanma Aracı | E200: 2020-11-19 | F200: Halka Arz/Tahsisli/Nitelikli | G200: 250,000,000 | H200: =Table5402945[[#This Row],[Yurtiçi İhraç Limiti Nominal Tutar (TL)]]/Table5402945[[#This Row],[Kurul karar tarihindeki TCMB Döviz Satış Kuru]] -> 32,536,408 | I200: 189,000,000 | J200: =Table5402945[[#This Row],[Yurtiçi İhraç Limiti Nominal Tutar (TL)]]-Table5402945[[#This Row],[Yurtiçi Satışı Gerçekleşen Nominal Tutar (TL)]] -> 61,000,000 | P200: 7.6837
A201: 197 | B201: ŞEKER YATIRIM MENKUL DEĞERLER A.Ş. | C201: Finansal Kurum | D201: Borçlanma Aracı | E201: 2020-11-19 | F201: Nitelikli | G201: 125,000,000 | H201: =Table5402945[[#This Row],[Yurtiçi İhraç Limiti Nominal Tutar (TL)]]/Table5402945[[#This Row],[Kurul karar tarihindeki TCMB Döviz Satış Kuru]] -> 16,268,204 | I201: 88,340,000 | J201: =Table5402945[[#This Row],[Yurtiçi İhraç Limiti Nominal Tutar (TL)]]-Table5402945[[#This Row],[Yurtiçi Satışı Gerçekleşen Nominal Tutar (TL)]] -> 36,660,000 | P201: 7.6837
... 24 more rows

Sheet Sheet2
A3: Row Labels | B3: Sum of Yurtiçi İhraç Limiti Nominal Tutar (TL) | C3: Sum of Yurtiçi Satışı Gerçekleşen Nominal Tutar (TL) | D3: Sum of Yurtiçi Satışa Hazır Nominal Tutar (TL)
A4: Banka | B4: 356,164,623,000 | C4: 40,743,163,169 | D4: 315,421,459,831
A5: Borçlanma Aracı | B5: 335,819,623,000 | C5: 40,743,163,169 | D5: 295,076,459,831
A6: İTMK | B6: 20,000,000,000 | C6: 0 | D6: 20,000,000,000
A7: VDMK | B7: 345,000,000 | C7: 0 | D7: 345,000,000
A8: Diğer
A9: Borçlanma Aracı
A10: Finansal Kurum | B10: 109,376,994,000 | C10: 45,441,857,042 | D10: 63,935,136,958
A11: Borçlanma Aracı | B11: 47,991,994,000 | C11: 15,656,819,594 | D11: 32,335,174,406
A12: Kira Sertifikası | B12: 59,665,000,000 | C12: 28,582,198,000 | D12: 31,082,802,000
A13: VDMK | B13: 1,720,000,000 | C13: 1,202,839,448 | D13: 517,160,552
A14: Reel Sektör | B14: 18,597,500,000 | C14: 3,623,946,100 | D14: 14,973,553,900
A15: Borçlanma Aracı | B15: 18,597,500,000 | C15: 3,623,946,100 | D15: 14,973,553,900
A16: Grand Total | B16: 484,139,117,000 | C16: 89,808,966,311 | D16: 394,330,150,689
